Workbook

Sheet Ripristini
A1: 1 | B1: PRESTAZIONI | E1: Categoria «ID-Opere» | J1: E | K1: SA | L1: SB | M1: IA | N1: IB | O1: V | P1: D | Q1: T | R1: P | T1: =T127 -> 20 | U1: =U127 -> 21 | V1: 22 | W1: 23 | X1: 24 | Y1: 25 | Z1: 26 | AA1: 27 | AB1: 28 | AC1: 29 | AD1: 30 | AE1: 31 | AF1: 32 | AG1: 33 | AH1: 34 | AI1: 35 | AJ1: 36 | AK1: 37 | AL1: 38 | AM1: 39 | AN1: 40 | AO1: 41 | AP1: 42 | AQ1: 43 | AR1: 44 | AS1: 45 | AT1: 46 | AU1: 47 | AV1: 48 | AW1: 49 | AX1: 50 | AY1: 51 | AZ1: 52 | BA1: 53 | BB1: 54 | BC1: 55 | BD1: 56 | BE1: 57 | BF1: 58 | BG1: 59 | BH1: 60 | BI1: 61 | BJ1: 62 | BK1: 63 | BL1: 64 | BM1: 65 | BN1: 66 | BO1: 67 | BP1: 68 | BQ1: 69 | BR1: 70 | BS1: 71 | GB1: 25 | GC1: 25
A2: 2 | B2: (Tavola Z-2) | E2: Grado di complessità «G»
A3: 3 | B3: Fasi prestazionali | E3: Importo dei lavori «V» | GC3: 0
A4: 4 | C4: Sottofasi | D4: «Q» | E4: Parametro «P» = se(V=0;0;se(V<=25000;(0,03 + 10/25000^ 0,4);0,03 + 10/V^0,4) x 100 | GC4: 5.800459058
A5: 5 | B5: a) Attività propedeutiche alla Progettazione (AP) | C5: a.I) Studi di fattibilità | D5: Qa.I.01 | E5: Relazione illustrativa (art. 14, comma 1, d.P.R. 207/2010) | J5: 0.045 | K5: 0.045 | L5: 0.045 | M5: 0.045 | N5: 0.045 | O5: 0.04 | P5: 0.035 | Q5: 0.05 | R5: 0.04 | GC5: 10
A6: 6 | D6: Qa.I.02 | E6: Relazione illustrativa, elaborati progettuali e tecnico economici | J6: 0.09 | K6: 0.09 | L6: 0.09 | M6: 0.09 | N6: 0.09 | O6: 0.08 | P6: 0.07 | Q6: 0.1 | R6: 0.08 | GC6: 72
A7: 7 | D7: Qa.I.03 | E7: Supporto al RUP: accertamenti e verifiche preliminari | J7: 0.02 | K7: 0.02 | L7: 0.02 | M7: 0.02 | N7: 0.02 | O7: 0.02 | P7: 0.02 | Q7: 0.02 | R7: 0.02
A8: 8 | C8: a.II) Stime e valutazioni | D8: Qa.II.01 | E8: Sintetiche, basate su elementi sintetici e globali, vani, metri cubi, etc. | J8: 0.04 | K8: 0.04 | L8: 0.04 | M8: 0.04 | N8: 0.04 | O8: 0.04 | P8: 0.04 | Q8: 0.04 | R8: 0.04
A9: 9 | D9: Qa.II.02 | E9: Particolareggiate, complete di criteri di valutazione, relazione motivata, descrizioni, computi e tipi | J9: 0.08 | K9: 0.08 | L9: 0.08 | M9: 0.08 | N9: 0.08 | O9: 0.08 | P9: 0.08 | Q9: 0.08 | R9: 0.08
A10: 10 | D10: Qa.II.03 | E10: Analitiche, integrate con specifiche e distinte, sullo stato e valore dei singoli componenti | J10: 0.16 | K10: 0.16 | L10: 0.16 | M10: 0.16 | N10: 0.16 | O10: 0.16 | P10: 0.16 | Q10: 0.16 | R10: 0.16
A11: 11 | C11: a.III) Rilievi, studi e analisi | D11: Qa.III.01 | E11: Rilievi, studi e classificazioni agronomiche, colturali, delle biomasse e delle attività produttive | J11: 0 | K11: 0 | L11: 0 | M11: 0 | N11: 0 | O11: 0 | P11: 0 | Q11: 0 | R11: 0.02
A12: 12 | D12: Qa.III.02 | E12: Rilievo botanico e analisi vegetazionali dei popolamenti erbacei ed arborei ed animali | J12: 0 | K12: 0 | L12: 0 | M12: 0 | N12: 0 | O12: 0 | P12: 0 | Q12: 0 | R12: 0.015
A13: 13 | D13: Qa.III.03 | E13: Elaborazioni, analisi e valutazioni con modelli numerici, software dedicati | J13: 0 | K13: 0 | L13: 0 | M13: 0 | N13: 0 | O13: 0 | P13: 0 | Q13: 0 | R13: 0.025
A14: 14 | C14: a.IV) Piani economici | D14: Qa.IV.01 | E14: Piani economici, aziendali, business plan e di investimento (Reg. CE 1698/2005) | J14: 0 | K14: 0 | L14: 0 | M14: 0 | N14: 0 | O14: 0 | P14: 0 | Q14: 0 | R14: 0.005
A15: 15 | B15: PROGETTAZIONE | C15: b.I) Progettazione di fattibilità (PF) | D15: Qb.I.01 | E15: Relazioni, planimetrie, elaborati grafici | J15: 0.09 | K15: 0.09 | L15: 0.09 | M15: 0.09 | N15: 0.09 | O15: 0.08 | P15: 0.07 | Q15: 0.1 | R15: 0.08
A16: 16 | D16: Qb.I.02 | E16: Calcolo sommario spesa, quadro economico di progetto | J16: 0.01 | K16: 0.01 | L16: 0.01 | M16: 0.01 | N16: 0.01 | O16: 0.01 | P16: 0.01 | Q16: 0.01 | R16: 0.01
A17: 17 | D17: Qb.I.03 | E17: Piano particellare preliminare delle aree o rilievo di massima degli immobili | J17: 0.02 | K17: 0.02 | L17: 0.02 | M17: 0.02 | N17: 0.02 | O17: 0.02 | P17: 0.02 | Q17: 0 | R17: 0.02
A18: 18 | D18: Qb.I.04 | E18: Piano economico e finanziario di massima (art. 17, comma 4, d.P.R. 207/2010) | J18: 0.03 | K18: 0.03 | L18: 0.03 | M18: 0.03 | N18: 0.03 | O18: 0.03 | P18: 0.03 | Q18: 0.03 | R18: 0.03
A19: 19 | D19: Qb.I.05 | E19: Capitolato speciale descrittivo e prestazionale, schema di contratto | J19: 0.07 | K19: 0.07 | L19: 0.07 | M19: 0.07 | N19: 0.07 | O19: 0.07 | P19: 0.07 | Q19: 0.07 | R19: 0.07
A20: 20 | D20: Qb.I.06 | E20: Relazione geotecnica (art.19, comma 1, d.P.R. 207/2010) | J20: 0.03 | K20: 0.03 | L20: 0.03 | M20: 0.03 | N20: 0.03 | O20: 0.03 | P20: 0.03 | Q20: 0 | R20: 0.03
A21: 21 | D21: Qb.I.07 | E21: Relazione idrologica (art. 19, comma 1, d.P.R. 207/2010) | J21: 0.015 | K21: 0.015 | L21: 0.015 | M21: 0.015 | N21: 0.015 | O21: 0.015 | P21: 0.015 | Q21: 0 | R21: 0.015
A22: 22 | D22: Qb.I.08 | E22: Relazione idraulica (art. 19, comma 1, d.P.R. 207/2010) | J22: 0.015 | K22: 0.015 | L22: 0.015 | M22: 0.015 | N22: 0.015 | O22: 0.015 | P22: 0.015 | Q22: 0 | R22: 0.015
A23: 23 | D23: Qb.I.09 | E23: Relazione sismica e sulle strutture (art. 19, comma 1, d.P.R. 207/2010) | J23: 0.015 | K23: 0.015 | L23: 0.015 | M23: 0.015 | N23: 0.015 | O23: 0.015 | P23: 0.015 | Q23: 0 | R23: 0.015
A24: 24 | D24: Qb.I.10 | E24: Relazione archeologica (art. 19, comma 1, d.P.R. 207/2010) | J24: 0.015 | K24: 0.015 | L24: 0.015 | M24: 0.015 | N24: 0.015 | O24: 0.015 | P24: 0.015 | Q24: 0 | R24: 0.015
A25: 25 | D25: Qb.I.11 | E25: Relazione geologica | G25: 250 | I25: 142 | J25: 0.039 | K25: 0.039 | L25: 0.053 | M25: 0.039 | N25: 0.039 | O25: 0.068 | P25: 0.053 | Q25: 0 | R25: 0.053
A26: 26 | G26: 500 | J26: 0.01 | K26: 0.01 | L26: 0.048 | M26: 0.01 | N26: 0.01 | O26: 0.058 | P26: 0.048 | Q26: 0 | R26: 0.048
A27: 27 | G27: 1000 | J27: 0.013 | K27: 0.013 | L27: 0.044 | M27: 0.013 | N27: 0.013 | O27: 0.047 | P27: 0.044 | Q27: 0 | R27: 0.044
A28: 28 | G28: 2500 | J28: 0.018 | K28: 0.018 | L28: 0.042 | M28: 0.018 | N28: 0.018 | O28: 0.034 | P28: 0.042 | Q28: 0 | R28: 0.042
A29: 29 | G29: 10000 | J29: 0.022 | K29: 0.022 | L29: 0.027 | M29: 0.022 | N29: 0.022 | O29: 0.019 | P29: 0.027 | Q29: 0 | R29: 0.027
A30: 30 | J30: 0.021 | K30: 0.021 | L30: 0.025 | M30: 0.021 | N30: 0.021 | O30: 0.018 | P30: 0.025 | Q30: 0 | R30: 0.025
A31: 31 | D31: Qb.I.12 | E31: Progettazione integrale e coordinata - Integrazione delle prestazioni specialistiche | J31: 0.02 | K31: 0.02 | L31: 0.02 | M31: 0.02 | N31: 0.039 | O31: 0.02 | P31: 0.02 | Q31: 0.02 | R31: 0.02
A32: 32 | D32: Qb.I.13 | E32: Studio di inserimento urbanistico | J32: 0.03 | K32: 0.03 | L32: 0.03 | M32: 0.01 | N32: 0.01 | O32: 0.03 | P32: 0.01 | Q32: 0 | R32: 0.03
A33: 33 | D33: Qb.I.14 | E33: Relazione tecnica sullo stato di consistenza degli immobili da ristrutturare | J33: 0.03 | K33: 0.03 | L33: 0.03 | M33: 0.03 | N33: 0.03 | O33: 0 | P33: 0 | Q33: 0 | R33: 0
A34: 34 | D34: Qb.I.15 | E34: Prime indicazioni di progettazione antincendio (d.m. 6/02/1982) | J34: 0.005 | K34: 0.005 | L34: 0.005 | M34: 0.005 | N34: 0.005 | O34: 0 | P34: 0 | Q34: 0 | R34: 0
A35: 35 | D35: Qb.I.16 | E35: Prime indicazioni e prescrizioni per la stesura dei Piani di Sicurezza (art. 17, comma 1, lettera f), d.P.R. 207/2010) | J35: 0.01 | K35: 0.01 | L35: 0.01 | M35: 0.01 | N35: 0.01 | O35: 0.01 | P35: 0.01 | Q35: 0.01 | R35: 0.01
A36: 36 | D36: Qb.I.17 | E36: Studi di prefattibilità ambientale | G36: 5000 | J36: 0.03 | K36: 0.035 | L36: 0.035 | M36: 0.03 | N36: 0.03 | O36: 0.035 | P36: 0.035 | Q36: 0.03 | R36: 0.035
A37: 37 | G37: 20000 | J37: 0.015 | K37: 0.02 | L37: 0.02 | M37: 0.015 | N37: 0.015 | O37: 0.02 | P37: 0.02 | Q37: 0.015 | R37: 0.02
A38: 38 | J38: 0.005 | K38: 0.008 | L38: 0.008 | M38: 0.05 | N38: 0.05 | O38: 0.008 | P38: 0.008 | Q38: 0.005 | R38: 0.008
A39: 39 | D39: Qb.I.18 | E39: Piano di monitoraggio ambientale | G39: 5000 | J39: 0.018 | K39: 0.02 | L39: 0.02 | M39: 0.018 | N39: 0.018 | O39: 0.02 | P39: 0.02 | Q39: 0.018 | R39: 0.02
A40: 40 | G40: 20000 | J40: 0.008 | K40: 0.01 | L40: 0.01 | M40: 0.008 | N40: 0.008 | O40: 0.01 | P40: 0.01 | Q40: 0.008 | R40: 0.01
A41: 41 | J41: 0.004 | K41: 0.005 | L41: 0.005 | M41: 0.04 | N41: 0.04 | O41: 0.005 | P41: 0.005 | Q41: 0.004 | R41: 0.005
A42: 42 | D42: Qb.I.19 | E42: Supporto al RUP: supervisione e coordinamento progettazione preliminare | J42: 0.01 | K42: 0.01 | L42: 0.01 | M42: 0.01 | N42: 0.01 | O42: 0.01 | P42: 0.01 | Q42: 0.01 | R42: 0.01
A43: 43 | D43: Qb.I.20 | E43: Supporto al RUP: per la Verifica della progettazione preliminare | J43: 0.06 | K43: 0.06 | L43: 0.06 | M43: 0.06 | N43: 0.06 | O43: 0.06 | P43: 0.06 | Q43: 0.06 | R43: 0.06
A44: 44 | C44: b.II) Progettazione definitiva (PD) | D44: Qb.II.01 | E44: Relazioni generale e tecniche, Elaborati grafici, Calcolo strutture e impianti. Relazione su risoluzione delle interferenze e Relazione su gestione materie | J44: 0.23 | K44: 0.18 | L44: 0.18 | M44: 0.16 | N44: 0.2 | O44: 0.22 | P44: 0.18 | Q44: 0.25 | R44: 0.18
A45: 45 | D45: Qb.II.02 | E45: Rilievi dei manufatti (art. 243, comma 1, lettera c), e art. 28, d.P.R. 207/2010) | J45: 0.04 | K45: 0.04 | L45: 0.04 | M45: 0.04 | N45: 0.04 | O45: 0 | P45: 0 | Q45: 0 | R45: 0
A46: 46 | D46: Qb.II.03 | E46: Disciplinare descrittivo e prestazionale (art. 24, co. 2, lett. g), d.P.R. 207/2010) | J46: 0.01 | K46: 0.01 | L46: 0.01 | M46: 0.01 | N46: 0.01 | O46: 0.01 | P46: 0.01 | Q46: 0.01 | R46: 0.01
A47: 47 | D47: Qb.II.04 | E47: Piano particellare d’esproprio (art. 24, comma 2, lettera i), d.P.R. 207/2010 | J47: 0.04 | K47: 0.04 | L47: 0.04 | M47: 0.04 | N47: 0.04 | O47: 0.04 | P47: 0.04 | Q47: 0 | R47: 0.04
A48: 48 | D48: Qb.II.05 | E48: Elenco prezzi unitari ed eventuali analisi, Computo metrico estimativo, Quadro economico (art. 24, comma 2, lettere l), m), o), d.P.R. 207/2010) | J48: 0.07 | K48: 0.04 | L48: 0.04 | M48: 0.07 | N48: 0.07 | O48: 0.06 | P48: 0.05 | Q48: 0.05 | R48: 0.05
A49: 49 | D49: Qb.II.06 | E49: Studio di inserimento urbanistico (art. 24, comma 2, lettera c), d.P.R. 207/2010) | J49: 0.03 | K49: 0.03 | L49: 0.03 | M49: 0.01 | N49: 0.01 | O49: 0.03 | P49: 0.01 | Q49: 0 | R49: 0.03 | BZ49: =SUM(T49:BY49) -> 0 | CA49: =BZ49*BZ$138 -> 0 | CB49: =BZ49+CA49 -> 0
A50: 50 | D50: Qb.II.07 | E50: Rilievi planoaltimetrici (art. 24, comma 2, lettera c), d.P.R. 207/2010) | J50: 0.02 | K50: 0.02 | L50: 0.02 | M50: 0.02 | N50: 0.02 | O50: 0.02 | P50: 0.02 | Q50: 0.02 | R50: 0.02 | BZ50: 0 | CA50: 0 | CB50: 0
A51: 51 | D51: Qb.II.08 | E51: Schema di contratto, Capitolato speciale d'appalto (art. 24, co. 3, d.P.R. 207/2010) | J51: 0.07 | K51: 0.07 | L51: 0.07 | M51: 0.08 | N51: 0.08 | O51: 0.07 | P51: 0.07 | Q51: 0.07 | R51: 0.07 | BZ51: 0 | CA51: 0 | CB51: 0
A52: 52 | D52: Qb.II.09 | E52: Relazione geotecnica (art. 26, comma 1, d.P.R. 207/2010) | J52: 0.06 | K52: 0.06 | L52: 0.06 | M52: 0.06 | N52: 0.06 | O52: 0.06 | P52: 0.06 | Q52: 0 | R52: 0.06 | BZ52: 0 | CA52: 0 | CB52: 0
A53: 53 | D53: Qb.II.10 | E53: Relazione idrologica (art. 26, comma 1, d.P.R. 207/2010) | J53: 0.03 | K53: 0.03 | L53: 0.03 | M53: 0.03 | N53: 0.03 | O53: 0.03 | P53: 0.03 | Q53: 0 | R53: 0.03 | BZ53: 0 | CA53: 0 | CB53: 0
A54: 54 | D54: Qb.II.11 | E54: Relazione idraulica (art. 26, comma 1, d.P.R. 207/2010) | J54: 0.03 | K54: 0.03 | L54: 0.03 | M54: 0.03 | N54: 0.03 | O54: 0.03 | P54: 0.03 | Q54: 0 | R54: 0.03 | BZ54: 0 | CA54: 0 | CB54: 0
A55: 55 | D55: Qb.II.12 | E55: Relazione sismica e sulle strutture (art.26 , comma 1, d.P.R. 207/10) | J55: 0.03 | K55: 0.03 | L55: 0.03 | M55: 0.03 | N55: 0.03 | O55: 0.03 | P55: 0.03 | Q55: 0 | R55: 0.03 | BZ55: 0 | CA55: 0 | CB55: 0
A56: 56 | D56: Qb.II.13 | E56: Relazione geologica | G56: 250 | I56: 143 | J56: 0.064 | K56: 0.064 | L56: 0.133 | M56: 0.064 | N56: 0.064 | O56: 0.145 | P56: 0.133 | Q56: 0 | R56: 0.133 | BZ56: 0 | CA56: 0 | CB56: 0
A57: 57 | G57: 500 | J57: 0.019 | K57: 0.019 | L57: 0.107 | M57: 0.019 | N57: 0.019 | O57: 0.114 | P57: 0.107 | Q57: 0 | R57: 0.107 | BZ57: 0 | CA57: 0 | CB57: 0
A58: 58 | G58: 1000 | J58: 0.021 | K58: 0.021 | L58: 0.096 | M58: 0.021 | N58: 0.021 | O58: 0.07 | P58: 0.096 | Q58: 0 | R58: 0.096 | BZ58: 0 | CA58: 0 | CB58: 0
A59: 59 | G59: 2500 | J59: 0.029 | K59: 0.029 | L59: 0.079 | M59: 0.029 | N59: 0.029 | O59: 0.035 | P59: 0.079 | Q59: 0 | R59: 0.079 | BZ59: 0 | CA59: 0 | CB59: 0
A60: 60 | G60: 10000 | J60: 0.038 | K60: 0.038 | L60: 0.054 | M60: 0.038 | N60: 0.038 | O60: 0.02 | P60: 0.054 | Q60: 0 | R60: 0.054 | BZ60: 0 | CA60: 0 | CB60: 0
A61: 61 | J61: 0.028 | K61: 0.028 | L61: 0.035 | M61: 0.028 | N61: 0.028 | O61: 0.018 | P61: 0.035 | Q61: 0 | R61: 0.035 | BZ61: 0 | CA61: 0 | CB61: 0
A62: 62 | D62: Qb.II.14 | E62: Analisi storico critica e relazione sulle strutture esistenti | J62: 0 | K62: 0.09 | L62: 0.09 | M62: 0 | N62: 0 | O62: 0 | P62: 0 | Q62: 0 | R62: 0 | BZ62: 0 | CA62: 0 | CB62: 0
A63: 63 | D63: Qb.II.15 | E63: Relazione sulle indagini dei materiali e delle strutture per edifici esistenti | J63: 0 | K63: 0.12 | L63: 0.12 | M63: 0 | N63: 0 | O63: 0 | P63: 0 | Q63: 0 | R63: 0 | BZ63: 0 | CA63: 0 | CB63: 0
A64: 64 | D64: Qb.II.16 | E64: Verifica sismica delle strutture esistenti e individuazione delle carenze strutturali | J64: 0 | K64: 0.18 | L64: 0.18 | M64: 0 | N64: 0 | O64: 0 | P64: 0 | Q64: 0 | R64: 0 | BZ64: 0 | CA64: 0 | CB64: 0
A65: 65 | D65: Qb.II.17 | E65: Progettazione integrale e coordinata - Integrazione delle prestazioni specialistiche | J65: 0.05 | K65: 0.05 | L65: 0.05 | M65: 0.05 | N65: 0.05 | O65: 0.05 | P65: 0.05 | Q65: 0.05 | R65: 0.05 | BZ65: 0 | CA65: 0 | CB65: 0
A66: 66 | D66: Qb.II.18 | E66: Elaborati di progettazione antincendio (d.m. 16/02/1982) | J66: 0.06 | K66: 0.06 | L66: 0.06 | M66: 0.06 | N66: 0.06 | O66: 0 | P66: 0 | Q66: 0 | R66: 0 | BZ66: 0 | CA66: 0 | CB66: 0
A67: 67 | D67: Qb.II.19 | E67: Relazione paesaggistica (d.lgs. 42/2004) | J67: 0.02 | K67: 0.02 | L67: 0.02 | M67: 0.02 | N67: 0.02 | O67: 0.02 | P67: 0.02 | Q67: 0.02 | R67: 0.02 | BZ67: 0 | CA67: 0 | CB67: 0
A68: 68 | D68: Qb.II.20 | E68: Elaborati e relazioni per requisiti acustici (legge 447/1995 - d.p.c.m. 512/1997) | J68: 0.02 | K68: 0.02 | L68: 0.02 | M68: 0.02 | N68: 0.02 | O68: 0.02 | P68: 0 | Q68: 0 | R68: 0 | BZ68: 0 | CA68: 0 | CB68: 0
A69: 69 | D69: Qb.II.21 | E69: Relazione energetica (ex legge 10/1991 e s.m.i.) | J69: 0.03 | K69: 0.03 | L69: 0.03 | M69: 0.03 | N69: 0.03 | O69: 0 | P69: 0 | Q69: 0 | R69: 0 | BZ69: =SUM(T69:BY69) -> 0 | CA69: 0 | CB69: =BZ69+CA69 -> 0
A70: 70 | D70: Qb.II.22 | E70: Diagnosi energetica (ex legge 10/1991) edifici esistenti, esclusi i rilievi e le indagini | J70: 0.02 | K70: 0.02 | L70: 0.02 | M70: 0.02 | N70: 0.02 | O70: 0 | P70: 0 | Q70: 0 | R70: 0 | BZ70: 0 | CA70: 0 | CB70: 0
A71: 71 | D71: Qb.II.23 | E71: Aggiornamento delle prime indicazioni e prescrizioni per la redazione del PSC | J71: 0.01 | K71: 0.01 | L71: 0.01 | M71: 0.01 | N71: 0.01 | O71: 0.01 | P71: 0.01 | Q71: 0.01 | R71: 0.01 | BZ71: 0 | CA71: 0 | CB71: 0
A72: 72 | D72: Qb.II.24 | E72: Studio impatto ambientale o fattibilità ambientale (VIA-VAS- AIA) | G72: 5000 | J72: 0.09 | K72: 0.1 | L72: 0.1 | M72: 0.09 | N72: 0.09 | O72: 0.1 | P72: 0.1 | Q72: 0.09 | R72: 0.1 | BZ72: 0 | CA72: 0 | CB72: 0
A73: 73 | G73: 20000 | J73: 0.045 | K73: 0.06 | L73: 0.06 | M73: 0.045 | N73: 0.045 | O73: 0.06 | P73: 0.06 | Q73: 0.045 | R73: 0.06 | BZ73: 0 | CA73: 0 | CB73: 0
A74: 74 | J74: 0.015 | K74: 0.025 | L74: 0.025 | M74: 0.015 | N74: 0.015 | O74: 0.025 | P74: 0.025 | Q74: 0.015 | R74: 0.025 | BZ74: 0 | CA74: 0 | CB74: 0
A75: 75 | D75: Qb.II.25 | E75: Piano di monitoraggio ambientale | G75: 5000 | J75: 0.018 | K75: 0.02 | L75: 0.02 | M75: 0.018 | N75: 0.018 | O75: 0.02 | P75: 0.02 | Q75: 0.018 | R75: 0.02 | BZ75: 0 | CA75: 0 | CB75: 0
A76: 76 | G76: 20000 | J76: 0.008 | K76: 0.01 | L76: 0.01 | M76: 0.008 | N76: 0.008 | O76: 0.01 | P76: 0.01 | Q76: 0.008 | R76: 0.01
A77: 77 | J77: 0.004 | K77: 0.005 | L77: 0.005 | M77: 0.004 | N77: 0.004 | O77: 0.005 | P77: 0.005 | Q77: 0.004 | R77: 0.005
A78: 78 | D78: Qb.II.26 | E78: Supporto al RUP: supervisione e coordinamento progettazione definitiva | J78: 0.01 | K78: 0.01 | L78: 0.01 | M78: 0.01 | N78: 0.01 | O78: 0.01 | P78: 0.01 | Q78: 0.01 | R78: 0.01
A79: 79 | D79: Qb.II.27 | E79: Supporto al RUP: per la Verifica della progettazione definitiva | J79: 0.13 | K79: 0.13 | L79: 0.13 | M79: 0.13 | N79: 0.13 | O79: 0.13 | P79: 0.13 | Q79: 0.13 | R79: 0.13
A80: 80 | C80: b.III) Progettazione esecutiva (PE) | D80: Qb.III.01 | E80: Relazione generale e specialistiche, Elaborati grafici, Calcoli esecutivi (art. 33, comma 1, lettere a), b), c), d), d.P.R. 207/2010) | J80: 0.07 | K80: 0.12 | L80: 0.12 | M80: 0.15 | N80: 0.04 | O80: 0.04 | P80: 0.11 | Q80: 0.05 | R80: 0.04
A81: 81 | D81: Qb.III.02 | E81: Particolari costruttivi e decorativi (art. 36, comma 1, lettera c), d.P.R. 207/2010) | J81: 0.13 | K81: 0.13 | L81: 0.13 | M81: 0.05 | N81: 0.05 | O81: 0.08 | P81: 0.05 | Q81: 0.1 | R81: 0.08
A82: 82 | D82: Qb.III.03 | E82: Computo metrico estimativo, Quadro economico, Elenco prezzi, analisi, Quadro dell'incidenza percentuale della quantità di manodopera (art. 33, comma 1, lettere f), g), i), d.P.R. 207/2010) | J82: 0.04 | K82: 0.03 | L82: 0.03 | M82: 0.05 | N82: 0.05 | O82: 0.03 | P82: 0 | Q82: 0.03 | R82: 0.03
A83: 83 | D83: Qb.III.04 | E83: Schema di contratto, capitolato speciale d'appalto, cronoprogramma | J83: 0.02 | K83: 0.01 | L83: 0.01 | M83: 0.02 | N83: 0.02 | O83: 0.02 | P83: 0.02 | Q83: 0.02 | R83: 0.02
A84: 84 | D84: Qb.III.05 | E84: Piano di manutenzione dell'opera (art. 33, comma 1, lettera e), d.P.R. 207/2010) | J84: 0.02 | K84: 0.025 | L84: 0.025 | M84: 0.03 | N84: 0.03 | O84: 0.03 | P84: 0.02 | Q84: 0.02 | R84: 0.03
A85: 85 | D85: Qb.III.06 | E85: Progettazione integrale e coordinata - Integrazione delle prestazioni specialistiche | J85: 0.03 | K85: 0.03 | L85: 0.03 | M85: 0.03 | N85: 0.03 | O85: 0.03 | P85: 0.03 | Q85: 0.03 | R85: 0.03
A86: 86 | D86: Qb.III.07 | E86: Piano di Sicurezza e Coordinamento (artt. 91 e 100 d.lgs. n. 81/2008) | I86: 146 | J86: 0.1 | K86: 0.1 | L86: 0.1 | M86: 0.1 | N86: 0.1 | O86: 0.1 | P86: 0.1 | Q86: 0.1 | R86: 0.1
A87: 87 | D87: Qb.III.08 | E87: Supporto al RUP: supervisione e coordinamento progettazione esecutiva | J87: 0.01 | K87: 0.01 | L87: 0.01 | M87: 0.01 | N87: 0.01 | O87: 0.01 | P87: 0.01 | Q87: 0.01 | R87: 0.01
A88: 88 | D88: Qb.III.09 | E88: Supporto al RUP: per la Verifica della progettazione esecutiva | J88: 0.13 | K88: 0.13 | L88: 0.13 | M88: 0.13 | N88: 0.13 | O88: 0.13 | P88: 0.13 | Q88: 0.13 | R88: 0.13
A89: 89 | D89: Qb.III.10 | E89: Supporto al RUP: per la programmazione e progettazione appalto | J89: 0.04 | K89: 0.04 | L89: 0.04 | M89: 0.04 | N89: 0.04 | O89: 0.04 | P89: 0.04 | Q89: 0.04 | R89: 0.04
A90: 90 | D90: Qb.III.11 | E90: Supporto al RUP: per la Validazione del progetto | J90: 0.01 | K90: 0.01 | L90: 0.01 | M90: 0.01 | N90: 0.01 | O90: 0.01 | P90: 0.01 | Q90: 0.01 | R90: 0.01
A91: 91 | B91: DIREZIONE DELL'ESECUZIONE | C91: c.I) Direzione dei lavori (DL) | D91: Qc.I.01 | E91: Direzione lavori, assistenza collaudo, prove accettazione | J91: 0.32 | K91: 0.38 | L91: 0.38 | M91: 0.32 | N91: 0.45 | O91: 0.42 | P91: 0.42 | Q91: 0.35 | R91: 0.11
A92: 92 | D92: Qc.I.02 | E92: Liquidazione Rendicontaz. liquidazione tecnico contabile | J92: 0.03 | K92: 0.02 | L92: 0.02 | M92: 0.03 | N92: 0.03 | O92: 0.03 | P92: 0.04 | Q92: 0.03 | R92: 0.03
A93: 93 | D93: Qc.I.03 | E93: Controllo aggiornamento elaborati di progetto, aggiornamento dei manuali d'uso e manutenzione (art. 148, comma 4, d.P.R. 207/2010) | J93: 0.02 | K93: 0.02 | L93: 0.02 | M93: 0.02 | N93: 0.02 | O93: 0.02 | P93: 0.02 | Q93: 0.02 | R93: 0.02
A94: 94 | D94: Qc.I.04 | E94: Coordinamento e supervisione dell'ufficio di direzione lavori | J94: 0.02 | K94: 0.02 | L94: 0.02 | M94: 0.02 | N94: 0.02 | O94: 0.02 | P94: 0.02 | Q94: 0.02 | R94: 0.02
A95: 95 | D95: Qc.I.05 | E95: Ufficio della DL, per ogni direttore operativo | H95: 149 | J95: 0.1 | K95: 0.1 | L95: 0.1 | M95: 0.1 | N95: 0.1 | O95: 0.1 | P95: 0.1 | Q95: 0.1 | R95: 0.1
A96: 96 | D96: Qc.I.05.01 | E96: Ufficio della DL, per direttore operativo “GEOLOGO” | G96: 250 | H96: 150 | I96: 144 | J96: 0.039 | K96: 0.039 | L96: 0.095 | M96: 0.039 | N96: 0.039 | O96: 0.127 | P96: 0.095 | Q96: 0 | R96: 0.095
A97: 97 | G97: 500 | J97: 0.01 | K97: 0.01 | L97: 0.081 | M97: 0.01 | N97: 0.01 | O97: 0.11 | P97: 0.081 | Q97: 0 | R97: 0.081
A98: 98 | G98: 1000 | J98: 0.013 | K98: 0.013 | L98: 0.071 | M98: 0.013 | N98: 0.013 | O98: 0.077 | P98: 0.071 | Q98: 0 | R98: 0.071
A99: 99 | G99: 2500 | J99: 0.018 | K99: 0.018 | L99: 0.052 | M99: 0.018 | N99: 0.018 | O99: 0.029 | P99: 0.052 | Q99: 0 | R99: 0.052
A100: 100 | G100: 10000 | J100: 0.022 | K100: 0.022 | L100: 0.042 | M100: 0.022 | N100: 0.022 | O100: 0.019 | P100: 0.042 | Q100: 0 | R100: 0.042
A101: 101 | J101: 0.021 | K101: 0.021 | L101: 0.03 | M101: 0.021 | N101: 0.021 | O101: 0.018 | P101: 0.03 | Q101: 0 | R101: 0.03
A102: 102 | D102: Qc.I.06 | E102: Ufficio della DL, per ogni ispettore di cantiere | H102: 151 | J102: 0.06 | K102: 0.06 | L102: 0.06 | M102: 0.06 | N102: 0.06 | O102: 0.06 | P102: 0.06 | Q102: 0.06 | R102: 0.06
A103: 103 | D103: Qc.I.07 | E103: Variante delle quantità del progetto in corso d'opera | J103: 0.14 | K103: 0.09 | L103: 0.09 | M103: 0.15 | N103: 0.15 | O103: 0.12 | P103: 0.12 | Q103: 0.11 | R103: 0.12
A104: 104 | D104: Qc.I.08 | E104: Variante del progetto in corso d'opera | J104: 0.41 | K104: 0.43 | L104: 0.43 | M104: 0.32 | N104: 0.32 | O104: 0.42 | P104: 0.34 | Q104: 0.4 | R104: 0.42
A105: 105 | D105: Qc.I.09 | E105: Contabilità dei lavori a MISURA | G105: 500 | J105: 0.06 | K105: 0.06 | L105: 0.06 | M105: 0.045 | N105: 0.045 | O105: 0.045 | P105: 0.045 | Q105: 0.045 | R105: 0.045
A106: 106 | J106: 0.012 | K106: 0.012 | L106: 0.012 | M106: 0.09 | N106: 0.09 | O106: 0.09 | P106: 0.09 | Q106: 0.09 | R106: 0.09
A107: 107 | D107: Qc.I.10 | E107: Contabilità dei lavori a CORPO | G107: 500 | J107: 0.045 | K107: 0.045 | L107: 0.045 | M107: 0.035 | N107: 0.035 | O107: 0.035 | P107: 0.035 | Q107: 0.035 | R107: 0.035
A108: 108 | J108: 0.09 | K108: 0.09 | L108: 0.09 | M108: 0.07 | N108: 0.07 | O108: 0.07 | P108: 0.07 | Q108: 0.07 | R108: 0.07
A109: 109 | D109: Qc.I.11 | E109: Certificato di regolare esecuzione (art. 237, d.P.R. 207/2010) | J109: 0.04 | K109: 0.04 | L109: 0.04 | M109: 0.04 | N109: 0.04 | O109: 0.04 | P109: 0.04 | Q109: 0.04 | R109: 0.04
A110: 110 | D110: Qc.I.12 | E110: Coordinamento della sicurezza in esecuzione (art. 92 d.lgs. n. 81/2008) | I110: 147 | J110: 0.25 | K110: 0.25 | L110: 0.25 | M110: 0.25 | N110: 0.25 | O110: 0.25 | P110: 0.25 | Q110: 0.25 | R110: 0.25
A111: 111 | D111: Qc.I.13 | E111: Supporto al RUP: supervisione e coordinamento della D.L. e del C.S.E. | J111: 0.04 | K111: 0.04 | L111: 0.04 | M111: 0.04 | N111: 0.04 | O111: 0.04 | P111: 0.04 | Q111: 0.04 | R111: 0.04
A112: 112 | D112: Qd.I.01 | E112: Collaudo tecnico amministrativo ( Parte II, Titolo X, d.P.R. 207/2010) | J112: 0.08 | K112: 0.08 | L112: 0.08 | M112: 0.08 | N112: 0.08 | O112: 0.08 | P112: 0.08 | Q112: 0.08 | R112: 0.08
A113: 113 | B113: COLLAUDO (COL) | D113: Qd.I.02 | E113: Revisione tecnico contabile (Parte II, Titolo X, d.P.R. 207/2010) | J113: 0.02 | K113: 0.02 | L113: 0.02 | M113: 0.02 | N113: 0.02 | O113: 0.02 | P113: 0.02 | Q113: 0.02 | R113: 0.02
A114: 114 | D114: Qd.I.03 | E114: Collaudo statico (Capitolo 9, d.m. 14/01/2008) | J114: 0 | K114: 0.22 | L114: 0.22 | M114: 0 | N114: 0 | O114: 0 | P114: 0 | Q114: 0 | R114: 0
A115: 115 | D115: Qd.I.04 | E115: Collaudo tecnico funzionale degli impianti (d.m. 22/01/2008, n. 37) | J115: 0 | K115: 0 | L115: 0 | M115: 0.18 | N115: 0.18 | O115: 0 | P115: 0.18 | Q115: 0 | R115: 0
A116: 116 | D116: Qd.I.05 | E116: Attestato di certificazione energetica (art. 6 d.lgs. 311/2006) Esclusa diagnosi energetica | J116: 0.03 | K116: 0.03 | L116: 0.03 | M116: 0.03 | N116: 0.03 | O116: 0 | P116: 0 | Q116: 0 | R116: 0
A117: 117 | B117: SUPPORTO AL RUP (RUP) | D117: =D7 -> Qa.I.03 | E117: =E7 -> Supporto al RUP: accertamenti e verifiche preliminari | J117: =J7 -> 0.02 | K117: =K7 -> 0.02 | L117: 0.02 | M117: 0.02 | N117: 0.02 | O117: 0.02 | P117: 0.02 | Q117: 0.02 | R117: =R7 -> 0.02
A118: 118 | D118: =D42 -> Qb.I.19 | E118: =E42 -> Supporto al RUP: supervisione e coordinamento progettazione preliminare | J118: =J42 -> 0.01 | K118: =K42 -> 0.01 | L118: 0.01 | M118: 0.01 | N118: 0.01 | O118: 0.01 | P118: 0.01 | Q118: 0.01 | R118: =R42 -> 0.01
A119: 119 | D119: =D78 -> Qb.II.26 | E119: =E78 -> Supporto al RUP: supervisione e coordinamento progettazione definitiva | J119: =J78 -> 0.01 | K119: =K78 -> 0.01 | L119: 0.01 | M119: 0.01 | N119: 0.01 | O119: 0.01 | P119: 0.01 | Q119: 0.01 | R119: =R78 -> 0.01
A120: 120 | D120: =D87 -> Qb.III.08 | E120: =E87 -> Supporto al RUP: supervisione e coordinamento progettazione esecutiva | J120: =J87 -> 0.01 | K120: =K87 -> 0.01 | L120: 0.01 | M120: 0.01 | N120: 0.01 | O120: 0.01 | P120: 0.01 | Q120: 0.01 | R120: =R87 -> 0.01
A121: 121 | D121: =D89 -> Qb.III.10 | E121: =E89 -> Supporto al RUP: per la programmazione e progettazione appalto | J121: =J89 -> 0.04 | K121: =K89 -> 0.04 | L121: 0.04 | M121: 0.04 | N121: 0.04 | O121: 0.04 | P121: 0.04 | Q121: 0.04 | R121: =R89 -> 0.04
A122: 122 | D122: =D111 -> Qc.I.13 | E122: =E111 -> Supporto al RUP: supervisione e coordinamento della D.L. e del C.S.E. | J122: =J111 -> 0.04 | K122: =K111 -> 0.04 | L122: 0.04 | M122: 0.04 | N122: 0.04 | O122: 0.04 | P122: 0.04 | Q122: 0.04 | R122: =R111 -> 0.04
A123: 123 | B123: VERIFICA DI PROGETTO (VER) | D123: =D43 -> Qb.I.20 | E123: =MID(E43,25,90) -> Verifica della progettazione preliminare | J123: =J43 -> 0.06 | K123: =K43 -> 0.06 | L123: 0.06 | M123: 0.06 | N123: 0.06 | O123: 0.06 | P123: 0.06 | Q123: 0.06 | R123: =R43 -> 0.06
A124: 124 | D124: =D79 -> Qb.II.27 | E124: =MID(E79,25,90) -> Verifica della progettazione definitiva | J124: =J79 -> 0.13 | K124: =K79 -> 0.13 | L124: 0.13 | M124: 0.13 | N124: 0.13 | O124: 0.13 | P124: 0.13 | Q124: 0.13 | R124: =R79 -> 0.13
A125: 125 | D125: =D88 -> Qb.III.09 | E125: =MID(E88,25,90) -> Verifica della progettazione esecutiva | J125: =J88 -> 0.13 | K125: =K88 -> 0.13 | L125: 0.13 | M125: 0.13 | N125: 0.13 | O125: 0.13 | P125: 0.13 | Q125: 0.13 | R125: =R88 -> 0.13
A126: 126 | D126: =D90 -> Qb.III.11 | E126: =MID(E90,25,90) -> Validazione del progetto | J126: =J90 -> 0.01 | K126: =K90 -> 0.01 | L126: 0.01 | M126: 0.01 | N126: 0.01 | O126: 0.01 | P126: 0.01 | Q126: 0.01 | R126: =R90 -> 0.01
A127: 127 | B127: Redatto il 15/06/20 17:31:43 | D127: Stampa del 17/06/20 09:10:23 | G127: =G141 -> 0 | H127: =H140 -> 8 | I127: 9 | J127: 10 | K127: 11 | L127: 12 | M127: 13 | N127: 14 | O127: 15 | P127: 16 | Q127: 17 | R127: 18 | S127: 19 | T127: 20 | U127: 21 | V127: 22 | W127: 23 | X127: 24 | Y127: 25 | Z127: 26 | AA127: 27 | AB127: 28 | AC127: 29 | AD127: 30 | AE127: 31 | AF127: 32 | AG127: 33 | AH127: 34 | AI127: 35 | AJ127: 36 | AK127: 37 | AL127: 38 | AM127: 39 | AN127: =AN140 -> 40 | AO127: 41 | AP127: 42 | AQ127: 43 | AR127: 44 | AS127: 45 | AT127: 46 | AU127: 47 | AV127: 48 | AW127: 49 | AX127: 50 | AY127: 51 | AZ127: 52 | BA127: 53 | BB127: 54 | BC127: 55 | BD127: 56 | BE127: 57 | BF127: 58 | BG127: 59 | BH127: 60 | BI127: 61 | BJ127: 62 | BK127: 63 | BL127: 64 | BM127: 65 | BN127: 66 | BO127: 67 | BP127: 68 | BQ127: 69 | BR127: 70 | BS127: 71
A128: 128 | E128: =B5 -> a) Attività propedeutiche alla Progettazione (AP) | F128: =SUM(F5:F14) -> 0
A129: 129 | E129: =C15 -> b.I) Progettazione di fattibilità (PF) | F129: =SUM(F15:F39) -> 0
A130: 130 | E130: =C44 -> b.II) Progettazione definitiva (PD) | F130: =SUM(F44:F75) -> 0
A131: 131 | E131: =C80 -> b.III) Progettazione esecutiva (PE) | F131: =SUM(F80:F86) -> 0
A132: 132 | E132: =C91 -> c.I) Direzione dei lavori (DL) | F132: =SUM(F91:F110) -> 0
A133: 133 | E133: b) SOLO FASE DI PROGETTAZIONE | F133: =IF(G133>1,4,0) -> 0 | G133: =SUM(F128:F131) -> 0
A134: 134 | E134: TOTALE GENERALE | F134: =IF(G134>5,G134,0) -> 0 | G134: =F132+F133 -> 0
A135: 135 | E135: COLLAUDO (COL) | F135: =IF(BQ135>0,6,0) -> 0 | G135: =SUM(BQ112:BQ116) -> 0
A136: 136 | E136: =B117 -> SUPPORTO AL RUP (RUP) | F136: =IF(BQ136>0,7,0) -> 0 | G136: =SUM(BQ117:BQ122) -> 0
A137: 137 | E137: =B123 -> VERIFICA DI PROGETTO (VER) | F137: =IF(BQ137>0,8,0) -> 0 | G137: =SUM(BQ123:BQ126) -> 0
A138: 138 | E138: Aliquota spese | F138: U
A139: 139 | E139: Importo delle spese
A140: 140 | E140: Importo TOTALE comprese spese | H140: 8 | I140: 9 | J140: 10 | K140: 11 | L140: 12 | M140: 13 | N140: 14 | O140: 15 | P140: 16 | Q140: 17 | R140: 18 | S140: 19 | T140: 20 | U140: 21 | V140: 22 | W140: 23 | X140: 24 | Y140: 25 | Z140: 26 | AA140: 27 | AB140: 28 | AC140: 29 | AD140: 30 | AE140: 31 | AF140: 32 | AG140: 33 | AH140: 34 | AI140: 35 | AJ140: 36 | AK140: 37 | AL140: 38 | AM140: 39 | AN140: 40 | AO140: 41 | AP140: 42 | AQ140: 43 | AR140: 44 | AS140: 45 | AT140: 46 | AU140: 47 | AV140: 48 | AW140: 49 | AX140: 50 | AY140: 51 | AZ140: 52 | BA140: 53 | BB140: 54 | BC140: 55 | BD140: 56 | BE140: 57 | BF140: 58 | BG140: 59 | BH140: 60 | BI140: 61 | BJ140: 62 | BK140: 63 | BL140: 64 | BM140: 65 | BN140: 66 | BO140: 67 | BP140: 68 | BQ140: 69 | BR140: 70 | BS140: 71
A141: 141 | K141: 10 | L141: 10 | M141: 10 | N141: 10 | O141: 10 | P141: 10 | Q141: 10 | R141: 10 | S141: 10 | T141: 10 | U141: 10 | V141: 10 | W141: 10 | X141: 10 | Y141: 10 | Z141: 10 | AA141: 10 | AB141: 10 | AC141: 10 | AD141: 10 | AE141: 10 | AF141: 10 | AG141: 11 | AH141: 12 | AI141: 11 | AJ141: 12 | AK141: 12 | AL141: 12 | AM141: 13 | AN141: 13 | AO141: 13 | AP141: 13 | AQ141: 14 | AR141: 14 | AS141: 14 | AT141: 14 | AU141: 14 | AV141: 14 | AW141: 14 | AX141: 14 | AY141: 14 | AZ141: 15 | BA141: 15 | BB141: 15 | BC141: 16 | BD141: 16 | BE141: 16 | BF141: 16 | BG141: 16 | BH141: 17 | BI141: 17 | BJ141: 17 | BK141: 18 | BL141: 18 | BM141: 18 | BN141: 18 | BO141: 18 | BP141: 18
A142: 142 | D142: =D25 -> Qb.I.11 | E142: (Geologo nel progetto di fattibilità) | F142: =IF(BQ25>0,1,0) -> 0 | H142: riferimento alla tabella Q
A143: 143 | D143: =D56 -> Qb.II.13 | E143: (Geologo nel progetto definitivo) | F143: =IF(BQ56>0,1,0) -> 0 | J143: ID-opere | K143: E.01 | L143: E.02 | M143: E.03 | N143: E.04 | O143: E.05 | P143: E.06 | Q143: E.07 | R143: E.08 | S143: E.09 | T143: E.10 | U143: E.11 | V143: E.12 | W143: E.13 | X143: E.14 | Y143: E.15 | Z143: E.16 | AA143: E.17 | AB143: E.18 | AC143: E.19 | AD143: E.20 | AE143: E.21 | AF143: E.22 | AG143: S.01 | AH143: S.02 | AI143: S.03 | AJ143: S.04 | AK143: S.05 | AL143: S.06 | AM143: IA.01 | AN143: IA.02 | AO143: IA.03 | AP143: IA.04 | AQ143: IB.04 | AR143: IB.05 | AS143: IB.06 | AT143: IB.07 | AU143: IB.08 | AV143: IB.09 | AW143: IB.10 | AX143: IB.11 | AY143: IB.12 | AZ143: V.01 | BA143: V.02 | BB143: V.03 | BC143: D.01 | BD143: D.02 | BE143: D.03 | BF143: D.04 | BG143: D.05 | BH143: T.01 | BI143: T.02 | BJ143: T.03 | BK143: P.01 | BL143: P.02 | BM143: P.03 | BN143: P.04 | BO143: P.05 | BP143: P.06 | BR143: CONTROLLO | BS143: CORRISPETTIVI
A144: 144 | D144: =D96 -> Qc.I.05.01 | E144: (Geologo in Direzione dei Lavori) | F144: =IF(BQ96>0,1,0) -> 0 | J144: Gradi di complessità G | K144: 0.65 | L144: 0.95 | M144: 0.95 | N144: 1.2 | O144: 0.65 | P144: 0.95 | Q144: 1.2 | R144: 0.95 | S144: 1.15 | T144: 1.2 | U144: 0.95 | V144: 1.15 | W144: 1.2 | X144: 0.65 | Y144: 0.95 | Z144: 1.2 | AA144: 0.65 | AB144: 0.95 | AC144: 1.2 | AD144: 0.95 | AE144: 1.2 | AF144: 1.55 | AG144: 0.7 | AH144: 0.5 | AI144: 0.95 | AJ144: 0.9 | AK144: 1.05 | AL144: 1.15 | AM144: 0.75 | AN144: 0.85 | AO144: 1.15 | AP144: 1.3 | AQ144: 0.55 | AR144: 0.7 | AS144: 0.7 | AT144: 0.75 | AU144: 0.5 | AV144: 0.6 | AW144: 0.75 | AX144: 0.9 | AY144: 1 | AZ144: 0.4 | BA144: 0.45 | BB144: 0.75 | BC144: 0.65 | BD144: 0.45 | BE144: 0.55 | BF144: 0.65 | BG144: 0.8 | BH144: 0.95 | BI144: 0.7 | BJ144: 1.2 | BK144: 0.85 | BL144: 0.85 | BM144: 0.85 | BN144: 0.85 | BO144: 0.85 | BP144: 0.85 | BQ144: TOTALE | BS144: comprese le
A145: 145 | E145: Prestazioni da GEOLOGO | F145: =IF(G145>1,1,0) -> 0 | G145: =SUM(F142:F144) -> 0 | J145: (importo) | BQ145: =SUM($K145:$BP145) -> 0 | BR145: =COUNTIF(K145:BP145,">0") -> 0 | BS145: SPESE
A146: 146 | D146: =D86 -> Qb.III.07 | E146: =E86 -> Piano di Sicurezza e Coordinamento (artt. 91 e 100 d.lgs. n. 81/2008) | F146: =IF(BQ146>0,1,0) -> 1 | J146: P | K146: =IF(K145>0,0.03+10/K145^0.4,0)*100 -> 0 | L146: 0 | M146: 0 | N146: 0 | O146: 0 | P146: 0 | Q146: 0 | R146: 0 | S146: 0 | T146: 0 | U146: 0 | V146: 0 | W146: 0 | X146: 0 | Y146: 0 | Z146: 0 | AA146: 0 | AB146: 0 | AC146: 0 | AD146: 0 | AE146: 0 | AF146: 0 | AG146: 0 | AH146: 0 | AI146: 0 | AJ146: 0 | AK146: 0 | AL146: 0 | AM146: 0 | AN146: 0 | AO146: 0 | AP146: 0 | AQ146: 0 | AR146: 0 | AS146: 0 | AT146: 0 | AU146: 0 | AV146: 0 | AW146: 0 | AX146: 0 | AY146: 0 | AZ146: 0 | BA146: 0 | BB146: 0 | BC146: 0 | BD146: 0 | BE146: 0 | BF146: 0 | BG146: 0 | BH146: 0 | BI146: 0 | BJ146: 0 | BK146: 0 | BL146: 0 | BM146: 0 | BN146: 0 | BO146: 0 | BP146: 0 | BQ146: ONORARI | BR146: SPESE | BS146: TOTALE
A147: 147 | D147: =D110 -> Qc.I.12 | E147: =E110 -> Coordinamento della sicurezza in esecuzione (art. 92 d.lgs. n. 81/2008) | F147: =IF(BQ147>0,1,0) -> 0
A148: 148 | E148: Prestazioni da Coordinatore ex d.lgs. n. 81 del 2008 | F148: =IF(G148>1,1,0) -> 0 | G148: =SUM(F146:F147) -> 1
A149: 149 | C149: 1 | D149: =D95 -> Qc.I.05 | E149: Ufficio della DL, direttori operativi | F149: =SOMMA("K149:BP149")
A150: 150 | C150: 2 | D150: =D96 -> Qc.I.05.01 | E150: Ufficio della DL, direttori "Geologi" | F150: =SOMMA("K150:BP150")
A151: 151 | C151: 3 | D151: =D102 -> Qc.I.06 | E151: Ufficio della DL, ispettori di cantiere | F151: =SOMMA("K151:BP151")
A152: 1 | B152: 2 | C152: 3 | D152: 4 | E152: 5 | F152: 6 | G152: 7 | H152: 8 | I152: 9 | J152: 10 | K152: 11 | L152: 12 | M152: 13 | N152: 14 | O152: 15 | P152: 16 | Q152: 17 | R152: 18 | S152: 19 | T152: 20 | U152: 21 | V152: 22 | W152: 23 | X152: 24 | Y152: 25 | Z152: 26 | AA152: 27 | AB152: 28 | AC152: 29 | AD152: 30 | AE152: 31 | AF152: 32 | AG152: 33 | AH152: 34 | AI152: 35 | AJ152: 36 | AK152: 37 | AL152: 38 | AM152: 39 | AN152: 40 | AO152: 41 | AP152: 42 | AQ152: 43 | AR152: 44 | AS152: 45 | AT152: 46 | AU152: 47 | AV152: 48 | AW152: 49 | AX152: 50 | AY152: 51 | AZ152: 52 | BA152: 53 | BB152: 54 | BC152: 55 | BD152: 56 | BE152: 57 | BF152: 58 | BG152: 59 | BH152: 60 | BI152: 61 | BJ152: 62 | BK152: 63 | BL152: 64 | BM152: 65 | BN152: 66 | BO152: 67 | BP152: 68 | BQ152: 69 | BR152: 70 | BS152: 71
H155: Macrocategorie | K155: EDILIZIA | L155: EDILIZIA | M155: EDILIZIA | N155: EDILIZIA | O155: EDILIZIA | P155: EDILIZIA | Q155: EDILIZIA | R155: EDILIZIA | S155: EDILIZIA | T155: EDILIZIA | U155: EDILIZIA | V155: EDILIZIA | W155: EDILIZIA | X155: EDILIZIA | Y155: EDILIZIA | Z155: EDILIZIA | AA155: EDILIZIA | AB155: EDILIZIA | AC155: EDILIZIA | AD155: EDILIZIA | AE155: EDILIZIA | AF155: EDILIZIA | AG155: STRUTTURE-A | AH155: STRUTTURE-B | AI155: STRUTTURE-A | AJ155: STRUTTURE-B | AK155: STRUTTURE-B | AL155: STRUTTURE-B | AM155: IMPIANTI-A | AN155: IMPIANTI-A | AO155: IMPIANTI-A | AP155: IMPIANTI-A | AQ155: IMPIANTI-B | AR155: IMPIANTI-B | AS155: IMPIANTI-B | AT155: IMPIANTI-B | AU155: IMPIANTI-B | AV155: IMPIANTI-B | AW155: IMPIANTI-B | AX155: IMPIANTI-B | AY155: IMPIANTI-B | AZ155: MOBILITA' | BA155: MOBILITA' | BB155: MOBILITA' | BC155: IDRAULICA | BD155: IDRAULICA | BE155: IDRAULICA | BF155: IDRAULICA | BG155: IDRAULICA | BH155: ITC | BI155: ITC | BJ155: ITC | BK155: PAESAGGIO | BL155: PAESAGGIO | BM155: PAESAGGIO | BN155: PAESAGGIO | BO155: PAESAGGIO | BP155: PAESAGGIO
H156: declaratoria | K156: Edifici rurali per l'attività agricola con corredi tecnici di tipo semplice (quali tettoie, depositi e ricoveri) - Edifici industriali o artigianali di importanza costruttiva corrente con corredi tecnici di base. | L156: Edifici rurali per l'attività agricola con corredi tecnici di tipo complesso - Edifici industriali o artigianali con organizzazione e corredi tecnici di tipo complesso | M156: Ostelli, Pensioni, Case albergo – Ristoranti - Motel e stazioni di servizio - negozi - mercati coperti di tipo semplice | N156: Alberghi, Villaggi turistici - Mercati e Centri commerciali complessi | O156: Edifici, pertinenze, autorimesse semplici, senza particolari esigenze tecniche. Edifici provvisori di modesta importanza | P156: Edilizia residenziale privata e pubblica di tipo corrente con costi di costruzione nella media di mercato e con tipologie standardizzate | Q156: Edifici residenziali di tipo pregiato con costi di costruzione eccedenti la media di mercato e con tipologie diversificate | R156: Sede Azienda Sanitaria, Distretto sanitario, Ambulatori di base. Asilo Nido, Scuola Materna, Scuola elementare, Scuole secondarie di primo grado fino a 24 classi, Scuole secondarie di secondo grado fino a 25 classi | S156: Scuole secondarie di primo grado oltre 24 classi-Istituti scolastici superiori oltre 25 classi- Case di cura | T156: Poliambulatori, Ospedali, Istituti di ricerca, Centri di riabilitazione, Poli scolastici, Università, Accademie, Istituti di ricerca universitaria | U156: Padiglioni provvisori per esposizioni - Costruzioni relative ad opere cimiteriali di tipo normale (colombari, ossari, loculari, edicole funerarie con caratteristiche costruttive semplici), Case parrocchiali, Oratori - Stabilimenti balneari - Aree ed attrezzature per lo sport all'aperto, Campo sportivo e servizi annessi, di tipo semplice | V156: Aree ed attrezzature per lo sport all'aperto, Campo sportivo e servizi annessi, di tipo complesso - Palestre e piscine coperte | W156: Biblioteca, Cinema, Teatro, Pinacoteca, Centro Culturale, Sede congressuale, Auditorium, Museo, Galleria d'arte, Discoteca, Studio radiofonico o televisivo o di produzione cinematografica - Opere cimiteriali di tipo monumentale, Monumenti commemorativi, Palasport, Stadio, Chiese | X156: Edifici provvisori di modesta importanza a servizio di caserme | Y156: Caserme con corredi tecnici di importanza corrente | Z156: Sedi ed Uffici di Società ed Enti, Sedi ed Uffici comunali, Sedi ed Uffici provinciali, Sedi ed Uffici regionali, Sedi ed Uffici ministeriali, Pretura, Tribunale, Palazzo di giustizia, Penitenziari, Caserme con corredi tecnici di importanza maggiore, Questura | AA156: Verde ed opere di arredo urbano improntate a grande semplicità, pertinenziali agli edifici ed alla viabilità, Campeggi e simili | AB156: Arredamenti con elementi acquistati dal mercato, Giardini, Parchi gioco, Piazze e spazi pubblici all’aperto | AC156: Arredamenti con elementi singolari, Parchi urbani, Parchi ludici attrezzati, Giardini e piazze storiche, Opere di riqualificazione paesaggistica e ambientale di aree urbane. | AD156: Interventi di manutenzione straordinaria, ristrutturazione, riqualificazione, su edifici e manufatti esistenti | AE156: Interventi di manutenzione straordinaria, restauro, ristrutturazione, riqualificazione, su edifici e manufatti di interesse storico artistico non soggetti a tutela ai sensi del decreto legislativo n. 42/2004 | AF156: Interventi di manutenzione, restauro, risanamento conservativo, riqualificazione, su edifici e manufatti di interesse storico artistico soggetti a tutela ai sensi del decreto legislativo n. 42/2004, oppure di particolare importanza | AG156: Strutture o parti di strutture in cemento armato, non soggette ad azioni sismiche - riparazione o intervento locale - Verifiche strutturali relative - Ponteggi, centinature e strutture provvisionali di durata inferiore a due anni | AH156: Strutture o parti di strutture in muratura, legno, metallo, non soggette ad azioni sismiche - riparazione o intervento locale – Verifiche strutturali relative. | AI156: Strutture o parti di strutture in cemento armato - Verifiche strutturali relative - Ponteggi, centinature e strutture provvisionali di durata superiore a due anni. | AJ156: Strutture o parti di strutture in muratura, legno, metallo - Verifiche strutturali relative - Consolidamento delle opere di fondazione di manufatti dissestati - Ponti, Paratie e tiranti, Consolidamento di pendii e di fronti rocciosi ed opere connesse, di tipo corrente - Verifiche strutturali relative. | AK156: Dighe, Conche, Elevatori, Opere di ritenuta e di difesa, rilevati, colmate. Gallerie, Opere sotterranee e subacquee, Fondazioni speciali. | AL156: Opere strutturali di notevole importanza costruttiva e richiedenti calcoli particolari - Verifiche strutturali relative - Strutture con metodologie normative che richiedono modellazione particolare: edifici alti con necessità di valutazioni di secondo ordine. | AM156: Impianti per approvvigionamento, preparazione e distribuzione di acqua nell'interno di edifici o per scopi industriali – Impianti sanitari - Impianti di fognatura domestica od industriale ed opere relative al trattamento delle acque di rifiuto - Reti di distribuzione di combustibili liquidi o gassosi - Impianti per la distribuzione dell’aria compressa del vuoto e di gas medicali - Impianti e reti antincendio | AN156: Impianti di riscaldamento - Impianto di raffrescamento, climatizzazione, trattamento dell’aria - Impianti meccanici di distribuzione fluidi - Impianto solare termico | AO156: Impianti elettrici in genere, impianti di illuminazione, telefonici, di rivelazione incendi, fotovoltaici, a corredo di edifici e costruzioni di importanza corrente - singole apparecchiature per laboratori e impianti pilota di tipo semplice | AP156: Impianti elettrici in genere, impianti di illuminazione, telefonici, di sicurezza, di rivelazione incendi, fotovoltaici, a corredo di edifici e costruzioni complessi - cablaggi strutturati - impianti in fibra ottica - singole apparecchiature per laboratori e impianti pilota di tipo complesso | AQ156: Depositi e discariche senza trattamento dei rifiuti. | AR156: Impianti per le industrie molitorie, cartarie, alimentari, delle fibre tessili naturali, del legno, del cuoio e simili. | AS156: Impianti della industria chimica inorganica - Impianti della preparazione e distillazione dei combustibili - Impianti siderurgici - Officine meccaniche e laboratori - Cantieri navali - Fabbriche di cemento, calce, laterizi, vetrerie e ceramiche - Impianti per le industrie della fermentazione, chimico-alimentari e tintorie - Impianti termovalorizzatori e impianti di trattamento dei rifiuti - Impianti della industria chimica organica - Impianti della piccola industria chimica speciale - Impianti di metallurgia - Impianti per la preparazione ed il trattamento dei minerali per la sistemazione e coltivazione delle cave e miniere | AT156: Gli impianti precedentemente esposti quando siano di complessità particolarmente rilevante o comportanti rischi e problematiche ambientali molto rilevanti | AU156: Impianti di linee e reti per trasmissioni e distribuzione di energia elettrica, telegrafia, telefonia. | AV156: Centrali idroelettriche ordinarie - Stazioni di trasformazioni e di conversione impianti di trazione elettrica | AW156: Impianti termoelettrici-Impianti dell'elettrochimica - Impianti della elettrometallurgia - Laboratori con ridotte problematiche tecniche | AX156: Campi fotovoltaici - Parchi eolici | AY156: Micro Centrali idroelettriche - Impianti termoelettrici - Impianti della elettrometallurgia di tipo complesso | AZ156: Interventi di manutenzione su viabilità ordinaria | BA156: Strade, linee tramviarie, ferrovie, strade ferrate, di tipo ordinario, escluse le opere d'arte da compensarsi a parte - Piste ciclabili | BB156: Strade, linee tramviarie, ferrovie, strade ferrate, con particolari difficoltà di studio, escluse le opere d'arte e le stazioni, da compensarsi a parte - Impianti teleferici e funicolari - Piste aeroportuali e simili. | BC156: Opere di navigazione interna e portuali | BD156: Bonifiche ed irrigazioni a deflusso naturale, sistemazione di corsi d'acqua e di bacini montani | BE156: Bonifiche ed irrigazioni con sollevamento meccanico di acqua (esclusi i macchinari) - Derivazioni d'acqua per forza motrice e produzione di energia elettrica | BF156: Impianti per provvista, condotta, distribuzione d'acqua, improntate a grande semplicità - Fognature urbane improntate a grande semplicità - Condotte subacquee in genere, metanodotti e gasdotti, di tipo ordinario | BG156: Impianti per provvista, condotta, distribuzione d'acqua - Fognature urbane - Condotte subacquee in genere, metanodotti e gasdotti, con problemi tecnici di tipo speciale. | BH156: Sistemi informativi, gestione elettronica del flusso documentale, dematerializzazione e gestione archivi, ingegnerizzazione dei processi, sistemi di gestione delle attività produttive, Data center, server farm. | BI156: Reti locali e geografiche, cablaggi strutturati, impianti in fibra ottica, Impianti di videosorveglianza, controllo accessi, identificazione targhe di veicoli ecc Sistemi wireless, reti wifi, ponti radio. | BJ156: Elettronica Industriale Sistemi a controllo numerico, Sistemi di automazione, Robotica | BK156: Opere relative alla sistemazione di ecosistemi naturali o naturalizzati, alle aree naturali protette ed alle aree a rilevanza faunistica. Opere relative al restauro paesaggistico di territori compromessi ed agli interventi su elementi strutturali del paesaggio. Opere di configurazione di assetto paesaggistico. | BL156: Opere a verde sia su piccola scala o grande scala dove la rilevanza dell’opera è prevalente rispetto alle opere di tipo costruttivo. | BM156: Opere di riqualificazione e risanamento di ambiti naturali, rurali e forestali o urbani finalizzati al ripristino delle condizioni originarie, al riassetto delle componenti biotiche ed abiotiche. | BN156: Opere di utilizzazione di bacini estrattivi a parete o a fossa | BO156: Opere di assetto ed utilizzazione forestale nonché dell’impiego ai fini industriali, energetici ed ambientali. Piste forestali, strade forestali– percorsi naturalistici, aree di sosta e di stazionamento dei mezzi forestali. Meccanizzazione forestale | BP156: Opere di intervento per la realizzazione di infrastrutture e di miglioramento dell’assetto rurale.

Sheet Z-2
B1: =Ripristini!B1 -> PRESTAZIONI | E1: Categoria «ID-Opere» | K1: =Ripristini!K143 -> E.01 | L1: =Ripristini!L143 -> E.02 | M1: =Ripristini!M143 -> E.03 | N1: =Ripristini!N143 -> E.04 | O1: =Ripristini!O143 -> E.05 | P1: =Ripristini!P143 -> E.06 | Q1: =Ripristini!Q143 -> E.07 | R1: =Ripristini!R143 -> E.08 | S1: =Ripristini!S143 -> E.09 | T1: =Ripristini!T143 -> E.10 | U1: =Ripristini!U143 -> E.11 | V1: =Ripristini!V143 -> E.12 | W1: =Ripristini!W143 -> E.13 | X1: =Ripristini!X143 -> E.14 | Y1: =Ripristini!Y143 -> E.15 | Z1: =Ripristini!Z143 -> E.16 | AA1: =Ripristini!AA143 -> E.17 | AB1: =Ripristini!AB143 -> E.18 | AC1: =Ripristini!AC143 -> E.19 | AD1: =Ripristini!AD143 -> E.20 | AE1: =Ripristini!AE143 -> E.21 | AF1: =Ripristini!AF143 -> E.22 | AG1: =Ripristini!AG143 -> S.01 | AH1: =Ripristini!AH143 -> S.02 | AI1: =Ripristini!AI143 -> S.03 | AJ1: =Ripristini!AJ143 -> S.04 | AK1: =Ripristini!AK143 -> S.05 | AL1: =Ripristini!AL143 -> S.06 | AM1: =Ripristini!AM143 -> IA.01 | AN1: =Ripristini!AN143 -> IA.02 | AO1: =Ripristini!AO143 -> IA.03 | AP1: =Ripristini!AP143 -> IA.04 | AQ1: =Ripristini!AQ143 -> IB.04 | AR1: =Ripristini!AR143 -> IB.05 | AS1: =Ripristini!AS143 -> IB.06 | AT1: =Ripristini!AT143 -> IB.07 | AU1: =Ripristini!AU143 -> IB.08 | AV1: =Ripristini!AV143 -> IB.09 | AW1: =Ripristini!AW143 -> IB.10 | AX1: =Ripristini!AX143 -> IB.11 | AY1: =Ripristini!AY143 -> IB.12 | AZ1: =Ripristini!AZ143 -> V.01 | BA1: =Ripristini!BA143 -> V.02 | BB1: =Ripristini!BB143 -> V.03 | BC1: =Ripristini!BC143 -> D.01 | BD1: =Ripristini!BD143 -> D.02 | BE1: =Ripristini!BE143 -> D.03 | BF1: =Ripristini!BF143 -> D.04 | BG1: =Ripristini!BG143 -> D.05 | BH1: =Ripristini!BH143 -> T.01 | BI1: =Ripristini!BI143 -> T.02 | BJ1: =Ripristini!BJ143 -> T.03 | BK1: =Ripristini!BK143 -> P.01 | BL1: =Ripristini!BL143 -> P.02 | BM1: =Ripristini!BM143 -> P.03 | BN1: =Ripristini!BN143 -> P.04 | BO1: =Ripristini!BO143 -> P.05 | BP1: =Ripristini!BP143 -> P.06 | BQ1: =COUNTIF(K3:BP3,">100") -> 4 | BS1: Corrispettivi
B2: =Ripristini!B2 -> (Tavola Z-2) | E2: =Ripristini!E2 -> Grado di complessità «G» | K2: 0.65 | L2: 0.95 | M2: 0.95 | N2: 1.2 | O2: 0.65 | P2: 0.95 | Q2: 1.2 | R2: 0.95 | S2: 1.15 | T2: 1.2 | U2: 0.95 | V2: 1.15 | W2: 1.2 | X2: 0.65 | Y2: 0.95 | Z2: 1.2 | AA2: 0.65 | AB2: 0.95 | AC2: 1.2 | AD2: 0.95 | AE2: 1.2 | AF2: 1.55 | AG2: 0.7 | AH2: 0.5 | AI2: 0.95 | AJ2: 0.9 | AK2: 1.05 | AL2: 1.15 | AM2: 0.75 | AN2: 0.85 | AO2: 1.15 | AP2: 1.3 | AQ2: 0.55 | AR2: 0.7 | AS2: 0.7 | AT2: 0.75 | AU2: 0.5 | AV2: 0.6 | AW2: 0.75 | AX2: 0.9 | AY2: 1 | AZ2: 0.4 | BA2: 0.45 | BB2: 0.75 | BC2: 0.65 | BD2: 0.45 | BE2: 0.55 | BF2: 0.65 | BG2: 0.8 | BH2: 0.95 | BI2: 0.7 | BJ2: 1.2 | BK2: 0.85 | BL2: 0.85 | BM2: 0.85 | BN2: 0.85 | BO2: 0.85 | BP2: 0.85 | BQ2: =Ripristini!BQ144 -> TOTALE | BS2: con le Spese
B3: =Ripristini!B3 -> Fasi prestazionali | E3: =Ripristini!E3 -> Importo dei lavori «V» | G3: Scaglioni | K3: 0 | L3: 0 | M3: 0 | N3: 0 | O3: 0 | P3: 0 | Q3: 0 | R3: 0 | S3: 0 | T3: 0 | U3: 0 | V3: 0 | W3: 0 | X3: 0 | Y3: 0 | Z3: 0 | AA3: 0 | AB3: 0 | AC3: 0 | AD3: 1645000 | AE3: 0 | AF3: 0 | AG3: 0 | AH3: 0 | AI3: 1175000 | AJ3: 0 | AK3: 0 | AL3: 0 | AM3: 940000 | AN3: 0 | AO3: 940000 | AP3: 0 | AQ3: 0 | AR3: 0 | AS3: 0 | AT3: 0 | AU3: 0 | AV3: 0 | AW3: 0 | AX3: 0 | AY3: 0 | AZ3: 0 | BA3: 0 | BB3: 0 | BC3: 0 | BD3: 0 | BE3: 0 | BF3: 0 | BG3: 0 | BH3: 0 | BI3: 0 | BJ3: 0 | BK3: 0 | BL3: 0 | BM3: 0 | BN3: 0 | BO3: 0 | BP3: 0 | BQ3: =SUM(K3:BP3) -> 4700000
C4: Sottofasi | D4: =Ripristini!D4 -> «Q» | E4: Parametro «P» =se(V<25000;(0,03+10/25000);(0,03+10/V^0,4))x100 | G4: (x 1.000) | M4: =IF(M3=0,0,IF(M3<=25000,(0.03+10/25000^0.4),0.03+10/M3^0.4)*100) -> 0 | N4: 0 | O4: 0 | P4: 0 | Q4: 0 | R4: 0 | S4: =IF(S3=0,0,IF(S3<=25000,(0.03+10/25000^0.4),0.03+10/S3^0.4)*100) -> 0 | T4: 0 | U4: 0 | V4: =IF(V3=0,0,IF(V3<=25000,(0.03+10/25000^0.4),0.03+10/V3^0.4)*100) -> 0 | W4: 0 | X4: 0 | Y4: 0 | Z4: 0 | AA4: 0 | AB4: 0 | AC4: 0 | AD4: 6.262373187 | AE4: 0 | AF4: 0 | AG4: 0 | AH4: 0 | AI4: 6.732371404 | AJ4: 0 | AK4: 0 | AL4: 0 | AM4: 7.080833339 | AN4: 0 | AO4: 7.080833339 | AP4: 0 | AQ4: 0 | AR4: 0 | AS4: 0 | AT4: 0 | AU4: 0 | AV4: 0 | AW4: 0 | AX4: 0 | AY4: 0 | AZ4: 0 | BA4: 0 | BB4: 0 | BC4: 0 | BD4: 0 | BE4: 0 | BF4: 0 | BG4: 0 | BH4: 0 | BI4: 0 | BJ4: 0 | BK4: 0 | BL4: 0 | BM4: 0 | BN4: 0 | BO4: 0 | BP4: 0 | BQ4: =Ripristini!BQ146 -> ONORARI | BR4: =Ripristini!BR146 -> SPESE | BS4: =Ripristini!BS146 -> TOTALE
B5: a) Attività propedeutiche alla Progettazione (AP) | C5: a.I) Studi di fattibilità | D5: Qa.I.01 | E5: =Ripristini!E5 -> Relazione illustrativa (art. 14, comma 1, d.P.R. 207/2010) | BQ5: =SUM(K5:BP5) -> 0 | BR5: =BQ5*BQ$138 -> 0 | BS5: =BQ5+BR5 -> 0
D6: =Ripristini!D6 -> Qa.I.02 | E6: =Ripristini!E6 -> Relazione illustrativa, elaborati progettuali e tecnico economici | BQ6: =SUM(K6:BP6) -> 0 | BR6: 0 | BS6: 0
D7: =Ripristini!D7 -> Qa.I.03 | E7: =Ripristini!E7 -> Supporto al RUP: accertamenti e verifiche preliminari | BQ7: 0 | BR7: 0
C8: a.II) Stime e valutazioni | D8: =Ripristini!D8 -> Qa.II.01 | E8: =Ripristini!E8 -> Sintetiche, basate su elementi sintetici e globali, vani, metri cubi, etc. | BQ8: 0 | BR8: 0 | BS8: 0
D9: =Ripristini!D9 -> Qa.II.02 | E9: =Ripristini!E9 -> Particolareggiate, complete di criteri di valutazione, relazione motivata, descrizioni, computi e tipi | BQ9: 0 | BR9: 0 | BS9: 0
D10: =Ripristini!D10 -> Qa.II.03 | E10: =Ripristini!E10 -> Analitiche, integrate con specifiche e distinte, sullo stato e valore dei singoli componenti | BQ10: 0 | BR10: 0 | BS10: 0
C11: a.III) Rilievi, studi e analisi | D11: =Ripristini!D11 -> Qa.III.01 | E11: =Ripristini!E11 -> Rilievi, studi e classificazioni agronomiche, colturali, delle biomasse e delle attività produttive | BQ11: 0 | BR11: 0 | BS11: 0
D12: =Ripristini!D12 -> Qa.III.02 | E12: =Ripristini!E12 -> Rilievo botanico e analisi vegetazionali dei popolamenti erbacei ed arborei ed animali | BQ12: 0 | BR12: 0 | BS12: 0
D13: =Ripristini!D13 -> Qa.III.03 | E13: =Ripristini!E13 -> Elaborazioni, analisi e valutazioni con modelli numerici, software dedicati | BQ13: 0 | BR13: 0 | BS13: 0
C14: a.IV) Piani economici | D14: =Ripristini!D14 -> Qa.IV.01 | E14: =Ripristini!E14 -> Piani economici, aziendali, business plan e di investimento (Reg. CE 1698/2005) | BQ14: 0 | BR14: 0 | BS14: 0
B15: PROGETTAZIONE | C15: b.I) Progettazione di fattibilità (PF) | D15: =Ripristini!D15 -> Qb.I.01 | E15: =Ripristini!E15 -> Relazioni, planimetrie, elaborati grafici | BQ15: 0 | BR15: 0 | BS15: 0
D16: =Ripristini!D16 -> Qb.I.02 | E16: =Ripristini!E16 -> Calcolo sommario spesa, quadro economico di progetto | BQ16: 0 | BR16: 0 | BS16: 0
D17: =Ripristini!D17 -> Qb.I.03 | E17: =Ripristini!E17 -> Piano particellare preliminare delle aree o rilievo di massima degli immobili | BQ17: 0 | BR17: 0 | BS17: 0
D18: =Ripristini!D18 -> Qb.I.04 | E18: =Ripristini!E18 -> Piano economico e finanziario di massima (art. 17, comma 4, d.P.R. 207/2010) | BQ18: 0 | BR18: 0 | BS18: 0
D19: =Ripristini!D19 -> Qb.I.05 | E19: =Ripristini!E19 -> Capitolato speciale descrittivo e prestazionale, schema di contratto | BQ19: 0 | BR19: 0 | BS19: 0
D20: =Ripristini!D20 -> Qb.I.06 | E20: =Ripristini!E20 -> Relazione geotecnica (art.19, comma 1, d.P.R. 207/2010) | BQ20: 0 | BR20: 0 | BS20: 0
D21: =Ripristini!D21 -> Qb.I.07 | E21: =Ripristini!E21 -> Relazione idrologica (art. 19, comma 1, d.P.R. 207/2010) | BQ21: 0 | BR21: 0 | BS21: 0
D22: =Ripristini!D22 -> Qb.I.08 | E22: =Ripristini!E22 -> Relazione idraulica (art. 19, comma 1, d.P.R. 207/2010) | BQ22: 0 | BR22: 0 | BS22: 0
D23: =Ripristini!D23 -> Qb.I.09 | E23: =Ripristini!E23 -> Relazione sismica e sulle strutture (art. 19, comma 1, d.P.R. 207/2010) | BQ23: 0 | BR23: 0 | BS23: 0
D24: =Ripristini!D24 -> Qb.I.10 | E24: =Ripristini!E24 -> Relazione archeologica (art. 19, comma 1, d.P.R. 207/2010) | BQ24: 0 | BR24: 0 | BS24: 0
D25: =Ripristini!D25 -> Qb.I.11 | E25: =Ripristini!E25 -> Relazione geologica | BQ25: 0 | BR25: 0 | BS25: 0
BQ26: 0 | BR26: 0 | BS26: 0
BQ27: 0 | BR27: 0 | BS27: 0
BQ28: 0 | BR28: 0 | BS28: 0
BQ29: 0 | BR29: 0 | BS29: 0
BQ30: 0 | BR30: 0 | BS30: 0
D31: =Ripristini!D31 -> Qb.I.12 | E31: =Ripristini!E31 -> Progettazione integrale e coordinata - Integrazione delle prestazioni specialistiche | BQ31: 0 | BR31: 0 | BS31: 0
D32: =Ripristini!D32 -> Qb.I.13 | E32: =Ripristini!E32 -> Studio di inserimento urbanistico | BQ32: 0 | BR32: 0 | BS32: 0
D33: =Ripristini!D33 -> Qb.I.14 | E33: =Ripristini!E33 -> Relazione tecnica sullo stato di consistenza degli immobili da ristrutturare | BQ33: 0 | BR33: 0 | BS33: 0
D34: =Ripristini!D34 -> Qb.I.15 | E34: =Ripristini!E34 -> Prime indicazioni di progettazione antincendio (d.m. 6/02/1982) | BQ34: 0 | BR34: 0 | BS34: 0
D35: =Ripristini!D35 -> Qb.I.16 | E35: =Ripristini!E35 -> Prime indicazioni e prescrizioni per la stesura dei Piani di Sicurezza (art. 17, comma 1, lettera f), d.P.R. 207/2010) | BQ35: 0 | BR35: 0 | BS35: 0
D36: =Ripristini!D36 -> Qb.I.17 | E36: =Ripristini!E36 -> Studi di prefattibilità ambientale | BQ36: 0 | BR36: 0 | BS36: 0
BQ37: 0 | BR37: =BQ37*BQ$138 -> 0 | BS37: =BQ37+BR37 -> 0
BQ38: 0 | BR38: 0 | BS38: 0
D39: =Ripristini!D39 -> Qb.I.18 | E39: =Ripristini!E39 -> Piano di monitoraggio ambientale | BQ39: 0 | BR39: 0 | BS39: 0
BQ40: 0 | BR40: 0 | BS40: 0
BQ41: 0 | BR41: 0 | BS41: 0
D42: =Ripristini!D42 -> Qb.I.19 | E42: =Ripristini!E42 -> Supporto al RUP: supervisione e coordinamento progettazione preliminare | BQ42: 0 | BR42: 0 | BS42: 0
D43: =Ripristini!D43 -> Qb.I.20 | E43: =Ripristini!E43 -> Supporto al RUP: per la Verifica della progettazione preliminare | BQ43: 0 | BR43: 0 | BS43: 0
C44: b.II) Progettazione definitiva (PD) | D44: =Ripristini!D44 -> Qb.II.01 | E44: =Ripristini!E44 -> Relazioni generale e tecniche, Elaborati grafici, Calcolo strutture e impianti. Relazione su risoluzione delle interferenze e Relazione su gestione materie | F44: 1 | AD44: 22509.00491 | AI44: 13527.01778 | AM44: 7987.179828 | AO44: 12247.00907 | BQ44: 56270.21159 | BR44: 13975.50531 | BS44: 70245.71691
D45: =Ripristini!D45 -> Qb.II.02 | E45: =Ripristini!E45 -> Rilievi dei manufatti (art. 243, comma 1, lettera c), e art. 28, d.P.R. 207/2010) | BQ45: 0 | BR45: 0 | BS45: 0
D46: =Ripristini!D46 -> Qb.II.03 | E46: =Ripristini!E46 -> Disciplinare descrittivo e prestazionale (art. 24, co. 2, lett. g), d.P.R. 207/2010) | F46: 1 | AD46: 978.652348 | AI46: 751.5009412 | AM46: 499.1987392 | AO46: 765.4380668 | BQ46: 2994.790095 | BR46: 743.798605 | BS46: 3738.5887
D47: =Ripristini!D47 -> Qb.II.04 | E47: =Ripristini!E47 -> Piano particellare d’esproprio (art. 24, comma 2, lettera i), d.P.R. 207/2010 | BQ47: 0 | BR47: 0 | BS47: 0
D48: =Ripristini!D48 -> Qb.II.05 | E48: =Ripristini!E48 -> Elenco prezzi unitari ed eventuali analisi, Computo metrico estimativo, Quadro economico (art. 24, comma 2, lettere l), m), o), d.P.R. 207/2010) | F48: 1 | AD48: 6850.566618 | AI48: 3006.003765 | AM48: 3494.391268 | AO48: 5358.06661 | BQ48: 18709.02826 | BR48: 4646.65258 | BS48: 23355.68084
D49: =Ripristini!D49 -> Qb.II.06 | E49: =Ripristini!E49 -> Studio di inserimento urbanistico (art. 24, comma 2, lettera c), d.P.R. 207/2010) | F49: 1 | AD49: 2935.957044 | AI49: 2254.502823 | AM49: 499.1987392 | AO49: 765.4380668 | BQ49: 6455.096673 | BR49: 1603.214833 | BS49: 8058.311506
D50: =Ripristini!D50 -> Qb.II.07 | E50: =Ripristini!E50 -> Rilievi planoaltimetrici (art. 24, comma 2, lettera c), d.P.R. 207/2010) | F50: 1 | AD50: 1957.304696 | AI50: 1503.001882 | AM50: 998.3974785 | AO50: 1530.876134 | BQ50: 5989.58019 | BR50: 1487.59721 | BS50: 7477.1774
D51: =Ripristini!D51 -> Qb.II.08 | E51: Schema di contratto, Capitolato speciale d'appalto (art. 24, co. 3, d.P.R. 207/2010) | BQ51: 0 | BR51: 0 | BS51: 0
D52: =Ripristini!D52 -> Qb.II.09 | E52: =Ripristini!E52 -> Relazione geotecnica (art. 26, comma 1, d.P.R. 207/2010) | BQ52: 0 | BR52: 0 | BS52: 0
D53: =Ripristini!D53 -> Qb.II.10 | E53: =Ripristini!E53 -> Relazione idrologica (art. 26, comma 1, d.P.R. 207/2010) | F53: 1 | AD53: 2935.957044 | AO53: 2296.3142 | BQ53: 5232.271244 | BR53: 1299.50879 | BS53: 6531.780034
D54: =Ripristini!D54 -> Qb.II.11 | E54: =Ripristini!E54 -> Relazione idraulica (art. 26, comma 1, d.P.R. 207/2010) | F54: 1 | AD54: 2935.957044 | AI54: 2254.502823 | AM54: 1497.596218 | AO54: 2296.3142 | BQ54: 8984.370286 | BR54: 2231.395815 | BS54: 11215.7661
D55: =Ripristini!D55 -> Qb.II.12 | E55: =Ripristini!E55 -> Relazione sismica e sulle strutture (art.26 , comma 1, d.P.R. 207/10) | F55: 1 | AD55: 2935.957044 | AI55: 2254.502823 | AM55: 1497.596218 | AO55: 2296.3142 | BQ55: 8984.370286 | BR55: 2231.395815 | BS55: 11215.7661
D56: =Ripristini!D56 -> Qb.II.13 | E56: =Ripristini!E56 -> Relazione geologica | F56: 1 | AD56: 2971.950208 | AI56: 2323.257266 | AM56: 1101.954688 | AO56: 1689.663855 | BQ56: 8086.826018 | BR56: 2008.477963 | BS56: 10095.30398
BQ57: 0 | BR57: 0 | BS57: 0
BQ58: 0 | BR58: 0 | BS58: 0
BQ59: 0 | BR59: 0 | BS59: 0
BQ60: 0 | BR60: 0 | BS60: 0
BQ61: 0 | BR61: 0 | BS61: 0
D62: Qb.II.14 | E62: Analisi storico critica e relazione sulle strutture esistenti | BQ62: 0 | BR62: 0 | BS62: 0
D63: Qb.II.15 | E63: Relazione sulle indagini dei materiali e delle strutture per edifici esistenti | BQ63: 0 | BR63: 0 | BS63: 0
D64: Qb.II.16 | E64: Verifica sismica delle strutture esistenti e individuazione delle carenze strutturali | BQ64: 0 | BR64: 0 | BS64: 0
D65: Qb.II.17 | E65: Progettazione integrale e coordinata - Integrazione delle prestazioni specialistiche | F65: 1 | AD65: 4893.261922 | AI65: 3757.504846 | AM65: 2495.993789 | AO65: 3827.190477 | BQ65: 14973.95103 | BR65: 3718.993164 | BS65: 18692.9442
D66: Qb.II.18 | E66: Elaborati di progettazione antincendio (d.m. 16/02/1982) | F66: 1 | AD66: 5871.914088 | AI66: 4509.005647 | AM66: 2995.192435 | AO66: 4592.628401 | BQ66: 17968.74057 | BR66: 4462.79163 | BS66: 22431.5322
D67: Qb.II.19 | E67: Relazione paesaggistica (d.lgs. 42/2004) | BQ67: 0 | BR67: 0 | BS67: 0
D68: Qb.II.20 | E68: Elaborati e relazioni per requisiti acustici (legge 447/1995 - d.p.c.m. 512/1997) | BQ68: 0 | BR68: 0 | BS68: 0
D69: Qb.II.21 | E69: Relazione energetica (ex legge 10/1991 e s.m.i.) | F69: 1 | AD69: 2935.957044 | AI69: 2254.502823 | AM69: 1497.596218 | AO69: 2296.3142 | BQ69: 8984.370286 | BR69: =BQ69*BQ$138 -> 2231.395815 | BS69: =BQ69+BR69 -> 11215.7661
D70: Qb.II.22 | E70: Diagnosi energetica (ex legge 10/1991) edifici esistenti, esclusi i rilievi e le indagini | BQ70: =SUM(K70:BP70) -> 0 | BR70: =BQ70*BQ$138 -> 0 | BS70: 0
D71: Qb.II.23 | E71: Aggiornamento delle prime indicazioni e prescrizioni per la redazione del PSC | F71: 1 | AD71: 978.652348 | AI71: 751.5009412 | AM71: 499.1987392 | AO71: 765.4380668 | BQ71: 2994.790095 | BR71: =BQ71*BQ$138 -> 743.798605 | BS71: 3738.5887
D72: Qb.II.24 | E72: Studio impatto ambientale o fattibilità ambientale (VIA-VAS- AIA) | BQ72: 0 | BR72: =BQ72*BQ$138 -> 0 | BS72: 0
BQ74: 0 | BR74: =BQ74*BQ$138 -> 0 | BS74: 0
D75: Qb.II.25 | E75: Piano di monitoraggio ambientale | BQ75: 0 | BR75: =BQ75*BQ$138 -> 0 | BS75: 0
BQ77: 0 | BR77: =BQ77*BQ$138 -> 0 | BS77: 0
D78: =Ripristini!D78 -> Qb.II.26 | E78: =Ripristini!E78 -> Supporto al RUP: supervisione e coordinamento progettazione definitiva | BQ78: 0 | BR78: 0 | BS78: 0
D79: =Ripristini!D79 -> Qb.II.27 | E79: =Ripristini!E79 -> Supporto al RUP: per la Verifica della progettazione definitiva | BQ79: 0 | BR79: 0 | BS79: 0
C80: b.III) Progettazione esecutiva (PE) | D80: =Ripristini!D80 -> Qb.III.01 | E80: =Ripristini!E80 -> Relazione generale e specialistiche, Elaborati grafici, Calcoli esecutivi (art. 33, comma 1, lettere a), b), c), d), d.P.R. 207/2010) | F80: 1 | AD80: 6850.566618 | AI80: 9018.011294 | AM80: 7487.981553 | AO80: 11481.57172 | BQ80: 34838.13118 | BR80: 8652.544102 | BS80: 43490.67528 | DJ80: 0
D81: =Ripristini!D81 -> Qb.III.02 | E81: =Ripristini!E81 -> Particolari costruttivi e decorativi (art. 36, comma 1, lettera c), d.P.R. 207/2010) | F81: 1 | AD81: 12722.48034 | AI81: 9769.512095 | AM81: 2495.993789 | AO81: 3827.190477 | BQ81: 28815.1767 | BR81: 7156.657914 | BS81: 35971.83462
D82: =Ripristini!D82 -> Qb.III.03 | E82: =Ripristini!E82 -> Computo metrico estimativo, Quadro economico, Elenco prezzi, analisi, Quadro dell'incidenza percentuale della quantità di manodopera (art. 33, comma 1, lettere f), g), i), d.P.R. 207/2010) | F82: 1 | AD82: 3914.609392 | AI82: 2254.502823 | AM82: 2495.993789 | AO82: 3827.190477 | BQ82: 12492.29648 | BR82: 3102.63905 | BS82: 15594.93553 | DH82: 9673.430084 | DJ82: 0
D83: =Ripristini!D83 -> Qb.III.04 | E83: =Ripristini!E83 -> Schema di contratto, capitolato speciale d'appalto, cronoprogramma | F83: 1 | AD83: 1957.304696 | AI83: 751.5009412 | AM83: 998.3974785 | AO83: 1530.876134 | BQ83: 5238.079249 | BR83: 1300.95129 | BS83: 6539.03054
D84: =Ripristini!D84 -> Qb.III.05 | E84: =Ripristini!E84 -> Piano di manutenzione dell'opera (art. 33, comma 1, lettera e), d.P.R. 207/2010) | F84: 1 | AD84: 1957.304696 | AI84: 1878.752423 | AM84: 1497.596218 | AO84: 2296.3142 | BQ84: 7629.967537 | BR84: 1895.010679 | BS84: 9524.978216 | DH84: 4836.715042 | DJ84: 0
D85: =Ripristini!D85 -> Qb.III.06 | E85: =Ripristini!E85 -> Progettazione integrale e coordinata - Integrazione delle prestazioni specialistiche | F85: 1 | AD85: 2935.957044 | AI85: 2254.502823 | AM85: 1497.596218 | AO85: 2296.3142 | BQ85: 8984.370286 | BR85: 2231.395815 | BS85: 11215.7661 | DH85: 7255.072563 | DJ85: 0
D86: =Ripristini!D86 -> Qb.III.07 | E86: =Ripristini!E86 -> Piano di Sicurezza e Coordinamento (artt. 91 e 100 d.lgs. n. 81/2008) | F86: 1 | AD86: 9786.523844 | AI86: 7515.009692 | AM86: 4991.987578 | AO86: 7654.380953 | BQ86: 29947.90207 | BR86: 7437.986328 | BS86: 37385.8884
D87: =Ripristini!D87 -> Qb.III.08 | E87: =Ripristini!E87 -> Supporto al RUP: supervisione e coordinamento progettazione esecutiva | BQ87: 0 | BR87: 0 | BS87: 0
D88: =Ripristini!D88 -> Qb.III.09 | E88: =Ripristini!E88 -> Supporto al RUP: per la Verifica della progettazione esecutiva | BQ88: 0 | BR88: 0 | BS88: 0
D89: =Ripristini!D89 -> Qb.III.10 | E89: =Ripristini!E89 -> Supporto al RUP: per la programmazione e progettazione appalto | BQ89: 0 | BR89: 0 | BS89: 0
D90: =Ripristini!D90 -> Qb.III.11 | E90: =Ripristini!E90 -> Supporto al RUP: per la Validazione del progetto | BQ90: 0 | BR90: 0 | BS90: 0
B91: DIREZIONE DELL'ESECUZIONE | C91: c.I) Direzione dei lavori (DL) | D91: =Ripristini!D91 -> Qc.I.01 | E91: =Ripristini!E91 -> Direzione lavori, assistenza collaudo, prove accettazione | F91: 1 | AD91: 31316.87514 | AI91: 28557.03604 | AM91: 15974.35966 | AO91: 24494.01814 | BQ91: 100342.289 | BR91: 24921.43095 | BS91: 125263.7199
D92: =Ripristini!D92 -> Qc.I.02 | E92: =Ripristini!E92 -> Liquidazione Rendicontaz. liquidazione tecnico contabile | F92: 1 | AD92: 2935.957044 | AI92: 1503.001882 | AM92: 1497.596218 | AO92: 2296.3142 | BQ92: 8232.869344 | BR92: 2044.749895 | BS92: 10277.61924 | DJ92: 0
D93: =Ripristini!D93 -> Qc.I.03 | E93: =Ripristini!E93 -> Controllo aggiornamento elaborati di progetto, aggiornamento dei manuali d'uso e manutenzione (art. 148, comma 4, d.P.R. 207/2010) | F93: 1 | AD93: 1957.304696 | AI93: 1503.001882 | AM93: 998.3974785 | AO93: 1530.876134 | BQ93: 5989.58019 | BR93: 1487.59721 | BS93: 7477.1774
D94: =Ripristini!D94 -> Qc.I.04 | E94: =Ripristini!E94 -> Coordinamento e supervisione dell'ufficio di direzione lavori | F94: 1 | AD94: 1957.304696 | AI94: 1503.001882 | AM94: 998.3974785 | AO94: 1530.876134 | BQ94: 5989.58019 | BR94: 1487.59721 | BS94: 7477.1774
D95: =Ripristini!D95 -> Qc.I.05 | E95: =Ripristini!E95 -> Ufficio della DL, per ogni direttore operativo | BQ95: 0 | BR95: 0 | BS95: 0
D96: =Ripristini!D96 -> Qc.I.05.01 | E96: =Ripristini!E96 -> Ufficio della DL, per direttore operativo “GEOLOGO” | BQ96: 0 | BR96: 0 | BS96: 0
BQ97: 0 | BR97: 0 | BS97: 0
BQ98: 0 | BR98: 0 | BS98: 0
BQ99: 0 | BR99: 0 | BS99: 0
BQ100: 0 | BR100: 0 | BS100: 0
BQ101: 0 | BR101: 0 | BS101: =BQ101+BR101 -> 0
D102: =Ripristini!D102 -> Qc.I.06 | E102: =Ripristini!E102 -> Ufficio della DL, per ogni ispettore di cantiere | BQ102: 0 | BR102: 0 | BS102: 0
D103: =Ripristini!D103 -> Qc.I.07 | E103: =Ripristini!E103 -> Variante delle quantità del progetto in corso d'opera | F103: 1 | AD103: 13701.13324 | AI103: 6763.50889 | AM103: 7487.981553 | AO103: 11481.57172 | BQ103: 39434.1954 | BR103: 9794.041851 | BS103: 49228.23725
D104: =Ripristini!D104 -> Qc.I.08 | E104: =Ripristini!E104 -> Variante del progetto in corso d'opera | BQ104: 0 | BR104: 0 | BS104: 0
D105: =Ripristini!D105 -> Qc.I.09 | E105: =Ripristini!E105 -> Contabilità dei lavori a MISURA | BQ105: 0 | BR105: 0 | BS105: 0
D106: =Ripristini!D106 -> 0 | BQ106: 0 | BR106: 0 | BS106: 0
D107: =Ripristini!D107 -> Qc.I.10 | E107: =Ripristini!E107 -> Contabilità dei lavori a CORPO | F107: 1 | AD107: 7469.289525 | AI107: 5324.464234 | AM107: 2565.031877 | AO107: 3933.048878 | BQ107: 19291.83451 | BR107: 4791.400781 | BS107: 24083.23529
BQ108: 0 | BR108: 0 | BS108: 0
D109: =Ripristini!D109 -> Qc.I.11 | E109: =Ripristini!E109 -> Certificato di regolare esecuzione (art. 237, d.P.R. 207/2010) | BQ109: 0 | BR109: =BQ109*BQ$138 -> 0 | BS109: 0
D110: =Ripristini!D110 -> Qc.I.12 | E110: =Ripristini!E110 -> Coordinamento della sicurezza in esecuzione (art. 92 d.lgs. n. 81/2008) | F110: 1 | AD110: 24466.30925 | AI110: 18787.52395 | AM110: 12479.96876 | AO110: 19135.9521 | BQ110: 74869.75405 | BR110: 18594.96554 | BS110: 93464.7196
D111: Qc.I.13 | E111: =Ripristini!E111 -> Supporto al RUP: supervisione e coordinamento della D.L. e del C.S.E. | F111: 1 | BQ111: 0 | BR111: 0 | BS111: 0
D112: Qd.I.01 | E112: Collaudo tecnico amministrativo ( Parte II, Titolo X, d.P.R. 207/2010) | BQ112: 0 | BR112: 0 | BS112: 0
B113: COLLAUDO (COL) | D113: Qd.I.02 | E113: Revisione tecnico contabile (Parte II, Titolo X, d.P.R. 207/2010) | BQ113: 0 | BR113: 0 | BS113: 0
D114: Qd.I.03 | E114: Collaudo statico (Capitolo 9, d.m. 14/01/2008) | BQ114: 0 | BR114: 0 | BS114: 0
D115: Qd.I.04 | E115: Collaudo tecnico funzionale degli impianti (d.m. 22/01/2008, n. 37) | BQ115: 0 | BR115: 0 | BS115: 0
D116: Qd.I.05 | E116: Attestato di certificazione energetica (art. 6 d.lgs. 311/2006) Esclusa diagnosi energetica | BQ116: 0 | BR116: 0 | BS116: 0
B117: SUPPORTO AL RUP (RUP) | D117: =D7 -> Qa.I.03 | E117: =E7 -> Supporto al RUP: accertamenti e verifiche preliminari | BQ117: 0 | BR117: 0 | BS117: 0
D118: =D42 -> Qb.I.19 | E118: =E42 -> Supporto al RUP: supervisione e coordinamento progettazione preliminare | BQ118: 0 | BR118: 0 | BS118: 0
D119: =D78 -> Qb.II.26 | E119: =E78 -> Supporto al RUP: supervisione e coordinamento progettazione definitiva | BQ119: 0 | BR119: 0 | BS119: 0
D120: =D87 -> Qb.III.08 | E120: =E87 -> Supporto al RUP: supervisione e coordinamento progettazione esecutiva | BQ120: 0 | BR120: 0 | BS120: 0
D121: =D89 -> Qb.III.10 | E121: =E89 -> Supporto al RUP: per la programmazione e progettazione appalto | BQ121: 0 | BR121: 0 | BS121: 0
D122: =D111 -> Qc.I.13 | E122: =E111 -> Supporto al RUP: supervisione e coordinamento della D.L. e del C.S.E. | BQ122: 0 | BR122: 0 | BS122: 0
B123: VERIFICA DI PROGETTO (VER) | D123: =D43 -> Qb.I.20 | E123: =MID(E43,25,90) -> Verifica della progettazione preliminare | BQ123: 0 | BR123: 0 | BS123: 0
D124: =D79 -> Qb.II.27 | E124: =MID(E79,25,90) -> Verifica della progettazione definitiva | BQ124: 0 | BR124: 0 | BS124: 0
D125: =D88 -> Qb.III.09 | E125: =MID(E88,25,90) -> Verifica della progettazione esecutiva | BQ125: 0 | BR125: 0 | BS125: 0
D126: =D90 -> Qb.III.11 | E126: =MID(E90,25,90) -> Validazione del progetto | BQ126: 0 | BR126: 0 | BS126: 0
B127: Redatto il 01/07/2022 | D127: Stampa del | E127: 2022-07-09 | F127: =SUM(F128:F132) -> 3 | K127: =K1 -> E.01 | L127: =L1 -> E.02 | M127: E.03 | N127: E.04 | O127: E.05 | P127: E.06 | Q127: E.07 | R127: E.08 | S127: E.09 | T127: E.10 | U127: E.11 | V127: E.12 | W127: E.13 | X127: E.14 | Y127: E.15 | Z127: E.16 | AA127: E.17 | AB127: E.18 | AC127: E.19 | AD127: E.20 | AE127: E.21 | AF127: E.22 | AG127: S.01 | AH127: S.02 | AI127: S.03 | AJ127: S.04 | AK127: S.05 | AL127: S.06 | AM127: IA.01 | AN127: IA.02 | AO127: IA.03 | AP127: IA.04 | AQ127: IB.04 | AR127: IB.05 | AS127: IB.06 | AT127: IB.07 | AU127: IB.08 | AV127: IB.09 | AW127: IB.10 | AX127: IB.11 | AY127: IB.12 | AZ127: V.01 | BA127: V.02 | BB127: V.03 | BC127: D.01 | BD127: D.02 | BE127: D.03 | BF127: D.04 | BG127: D.05 | BH127: T.01 | BI127: T.02 | BJ127: T.03 | BK127: P.01 | BL127: P.02 | BM127: P.03 | BN127: P.04 | BO127: P.05 | BP127: P.06 | BR127: =BR4 -> SPESE | BS127: =BS4 -> TOTALE
E128: =B5 -> a) Attività propedeutiche alla Progettazione (AP) | F128: =IF(SUM(F5:F14)>0,1,0) -> 0 | K128: =SUM(K5:K14) -> 0 | L128: 0 | M128: =SUM(M5:M14) -> 0 | N128: 0 | O128: 0 | P128: 0 | Q128: 0 | R128: 0 | S128: 0 | T128: 0 | U128: 0 | V128: 0 | W128: 0 | X128: 0 | Y128: 0 | Z128: 0 | AA128: 0 | AB128: 0 | AC128: 0 | AD128: 0 | AE128: 0 | AF128: 0 | AG128: 0 | AH128: 0 | AI128: 0 | AJ128: 0 | AK128: 0 | AL128: 0 | AM128: 0 | AN128: 0 | AO128: 0 | AP128: 0 | AQ128: 0 | AR128: 0 | AS128: 0 | AT128: 0 | AU128: 0 | AV128: 0 | AW128: 0 | AX128: 0 | AY128: 0 | AZ128: 0 | BA128: 0 | BB128: 0 | BC128: 0 | BD128: 0 | BE128: 0 | BF128: 0 | BG128: 0 | BH128: 0 | BI128: 0 | BJ128: 0 | BK128: 0 | BL128: 0 | BM128: 0 | BN128: 0 | BO128: 0 | BP128: 0 | BQ128: 0 | BR128: =BQ128*BQ$138 -> 0 | BS128: =BQ128+BR128 -> 0
E129: =C15 -> b.I) Progettazione di fattibilità (PF) | F129: =IF(SUM(F15:F39)>0,1,0) -> 0 | K129: =SUM(K15:K39) -> 0 | L129: 0 | M129: =SUM(M15:M39) -> 0 | N129: =SUM(N15:N39) -> 0 | O129: 0 | P129: 0 | Q129: 0 | R129: 0 | S129: 0 | T129: 0 | U129: 0 | V129: 0 | W129: 0 | X129: 0 | Y129: 0 | Z129: 0 | AA129: 0 | AB129: 0 | AC129: 0 | AD129: 0 | AE129: 0 | AF129: 0 | AG129: 0 | AH129: 0 | AI129: 0 | AJ129: 0 | AK129: 0 | AL129: 0 | AM129: 0 | AN129: 0 | AO129: 0 | AP129: 0 | AQ129: 0 | AR129: 0 | AS129: 0 | AT129: 0 | AU129: 0 | AV129: 0 | AW129: 0 | AX129: 0 | AY129: 0 | AZ129: 0 | BA129: 0 | BB129: 0 | BC129: 0 | BD129: 0 | BE129: 0 | BF129: 0 | BG129: 0 | BH129: 0 | BI129: 0 | BJ129: 0 | BK129: 0 | BL129: 0 | BM129: 0 | BN129: 0 | BO129: 0 | BP129: 0 | BQ129: 0 | BR129: =BQ129*BQ$138 -> 0 | BS129: 0
E130: =C44 -> b.II) Progettazione definitiva (PD) | F130: =IF(SUM(F44:F75)>0,1,0) -> 1 | K130: =SUM(K44:K75) -> 0 | L130: 0 | M130: =SUM(M44:M75) -> 0 | N130: =SUM(N44:N75) -> 0 | O130: 0 | P130: 0 | Q130: 0 | R130: 0 | S130: 0 | T130: 0 | U130: 0 | V130: 0 | W130: 0 | X130: 0 | Y130: 0 | Z130: 0 | AA130: 0 | AB130: 0 | AC130: 0 | AD130: 61691.09236 | AE130: 0 | AF130: 0 | AG130: 0 | AH130: 0 | AI130: 39146.80436 | AJ130: 0 | AK130: 0 | AL130: 0 | AM130: 25063.49436 | AN130: 0 | AO130: 40727.00555 | AP130: 0 | AQ130: 0 | AR130: 0 | AS130: 0 | AT130: 0 | AU130: 0 | AV130: 0 | AW130: 0 | AX130: 0 | AY130: 0 | AZ130: 0 | BA130: 0 | BB130: 0 | BC130: 0 | BD130: 0 | BE130: 0 | BF130: 0 | BG130: 0 | BH130: 0 | BI130: 0 | BJ130: 0 | BK130: 0 | BL130: 0 | BM130: 0 | BN130: 0 | BO130: 0 | BP130: 0 | BQ130: 166628.3966 | BR130: =BQ130*BQ$138 -> 41384.52614 | BS130: 208012.9228
E131: =C80 -> b.III) Progettazione esecutiva (PE) | F131: =IF(SUM(F80:F86)>0,1,0) -> 1 | K131: =SUM(K80:K86) -> 0 | L131: 0 | M131: =SUM(M80:M86) -> 0 | N131: =SUM(N80:N86) -> 0 | O131: 0 | P131: 0 | Q131: 0 | R131: 0 | S131: 0 | T131: 0 | U131: 0 | V131: 0 | W131: 0 | X131: 0 | Y131: 0 | Z131: 0 | AA131: 0 | AB131: 0 | AC131: 0 | AD131: 40124.74663 | AE131: 0 | AF131: 0 | AG131: 0 | AH131: 0 | AI131: 33441.79209 | AJ131: 0 | AK131: 0 | AL131: 0 | AM131: 21465.54662 | AN131: 0 | AO131: 32913.83816 | AP131: 0 | AQ131: 0 | AR131: 0 | AS131: 0 | AT131: 0 | AU131: 0 | AV131: 0 | AW131: 0 | AX131: 0 | AY131: 0 | AZ131: 0 | BA131: 0 | BB131: 0 | BC131: 0 | BD131: 0 | BE131: 0 | BF131: 0 | BG131: 0 | BH131: 0 | BI131: 0 | BJ131: 0 | BK131: 0 | BL131: 0 | BM131: 0 | BN131: 0 | BO131: 0 | BP131: 0 | BQ131: 127945.9235 | BR131: =BQ131*BQ$138 -> 31777.18518 | BS131: 159723.1087
E132: =C91 -> c.I) Direzione dei lavori (DL) | F132: =IF(SUM(F91:F110)>0,1,0) -> 1 | K132: =SUM(K91:K110) -> 0 | L132: 0 | M132: =SUM(M91:M110) -> 0 | N132: =SUM(N91:N110) -> 0 | O132: 0 | P132: 0 | Q132: 0 | R132: 0 | S132: 0 | T132: 0 | U132: 0 | V132: 0 | W132: 0 | X132: 0 | Y132: 0 | Z132: 0 | AA132: 0 | AB132: 0 | AC132: 0 | AD132: 83804.17358 | AE132: 0 | AF132: 0 | AG132: 0 | AH132: 0 | AI132: 63941.53876 | AJ132: 0 | AK132: 0 | AL132: 0 | AM132: 42001.73302 | AN132: 0 | AO132: 64402.6573 | AP132: 0 | AQ132: 0 | AR132: 0 | AS132: 0 | AT132: 0 | AU132: 0 | AV132: 0 | AW132: 0 | AX132: 0 | AY132: 0 | AZ132: 0 | BA132: 0 | BB132: 0 | BC132: 0 | BD132: 0 | BE132: 0 | BF132: 0 | BG132: 0 | BH132: 0 | BI132: 0 | BJ132: 0 | BK132: 0 | BL132: 0 | BM132: 0 | BN132: 0 | BO132: 0 | BP132: 0 | BQ132: 254150.1027 | BR132: =BQ132*BQ$138 -> 63121.78344 | BS132: 317271.8861
E133: SOLO FASI DI PROGETTAZIONE | F133: =IF(SUM(F128:F131)>1,1,0) -> 1 | K133: =SUM(K128:K131) -> 0 | L133: 0 | M133: =SUM(M128:M131) -> 0 | N133: =SUM(N128:N131) -> 0 | O133: 0 | P133: 0 | Q133: 0 | R133: 0 | S133: 0 | T133: 0 | U133: 0 | V133: 0 | W133: 0 | X133: 0 | Y133: 0 | Z133: 0 | AA133: 0 | AB133: 0 | AC133: 0 | AD133: 101815.839 | AE133: 0 | AF133: 0 | AG133: 0 | AH133: 0 | AI133: 72588.59645 | AJ133: 0 | AK133: 0 | AL133: 0 | AM133: 46529.04098 | AN133: 0 | AO133: 73640.84371 | AP133: 0 | AQ133: 0 | AR133: 0 | AS133: 0 | AT133: 0 | AU133: 0 | AV133: 0 | AW133: 0 | AX133: 0 | AY133: 0 | AZ133: 0 | BA133: 0 | BB133: 0 | BC133: 0 | BD133: 0 | BE133: 0 | BF133: 0 | BG133: 0 | BH133: 0 | BI133: 0 | BJ133: 0 | BK133: 0 | BL133: 0 | BM133: 0 | BN133: 0 | BO133: 0 | BP133: 0 | BQ133: 294574.3201 | BR133: =SUM(BR128:BR131) -> 73161.71132 | BS133: 367736.0315
E134: TOTALE GENERALE | F134: =IF((F132+SUM(128:133))>1,1,0) -> 1 | K134: =K132+K133 -> 0 | L134: =L132+L133 -> 0 | M134: 0 | N134: 0 | O134: 0 | P134: 0 | Q134: 0 | R134: 0 | S134: 0 | T134: 0 | U134: 0 | V134: 0 | W134: 0 | X134: 0 | Y134: 0 | Z134: 0 | AA134: 0 | AB134: 0 | AC134: 0 | AD134: 185620.0126 | AE134: 0 | AF134: 0 | AG134: 0 | AH134: 0 | AI134: 136530.1352 | AJ134: 0 | AK134: 0 | AL134: 0 | AM134: 88530.774 | AN134: 0 | AO134: 138043.501 | AP134: 0 | AQ134: 0 | AR134: 0 | AS134: 0 | AT134: 0 | AU134: 0 | AV134: 0 | AW134: 0 | AX134: 0 | AY134: 0 | AZ134: 0 | BA134: 0 | BB134: 0 | BC134: 0 | BD134: 0 | BE134: 0 | BF134: 0 | BG134: 0 | BH134: 0 | BI134: 0 | BJ134: 0 | BK134: 0 | BL134: 0 | BM134: 0 | BN134: 0 | BO134: 0 | BP134: 0 | BQ134: 548724.4228 | BR134: =BQ134*BQ$138 -> 136283.4948 | BS134: =BQ134+BQ139 -> 685007.9176
E135: COLLAUDO (COL) | F135: =SUM(F112:F116) -> 0 | K135: =SUM(K112:K116) -> 0 | L135: 0 | M135: =SUM(M112:M116) -> 0 | N135: =SUM(N112:N116) -> 0 | O135: 0 | P135: 0 | Q135: 0 | R135: 0 | S135: 0 | T135: 0 | U135: 0 | V135: 0 | W135: 0 | X135: 0 | Y135: 0 | Z135: 0 | AA135: 0 | AB135: 0 | AC135: 0 | AD135: 0 | AE135: 0 | AF135: 0 | AG135: 0 | AH135: 0 | AI135: 0 | AJ135: 0 | AK135: 0 | AL135: 0 | AM135: 0 | AN135: 0 | AO135: 0 | AP135: 0 | AQ135: 0 | AR135: 0 | AS135: 0 | AT135: 0 | AU135: 0 | AV135: 0 | AW135: 0 | AX135: 0 | AY135: 0 | AZ135: 0 | BA135: 0 | BB135: 0 | BC135: 0 | BD135: 0 | BE135: 0 | BF135: 0 | BG135: 0 | BH135: 0 | BI135: 0 | BJ135: 0 | BK135: 0 | BL135: 0 | BM135: 0 | BN135: 0 | BO135: 0 | BP135: 0 | BQ135: =SUM(K135:BP135) -> 0 | BR135: =BQ135*BQ$138 -> 0 | BS135: =BQ135+BR135 -> 0
E136: =B117 -> SUPPORTO AL RUP (RUP) | F136: =SUM(F117:F122) -> 0 | K136: =SUM(K117:K122) -> 0 | L136: 0 | M136: =SUM(M117:M122) -> 0 | N136: =SUM(N117:N122) -> 0 | O136: 0 | P136: 0 | Q136: 0 | R136: 0 | S136: 0 | T136: 0 | U136: 0 | V136: 0 | W136: 0 | X136: 0 | Y136: 0 | Z136: 0 | AA136: 0 | AB136: 0 | AC136: 0 | AD136: 0 | AE136: 0 | AF136: 0 | AG136: 0 | AH136: 0 | AI136: 0 | AJ136: 0 | AK136: 0 | AL136: 0 | AM136: 0 | AN136: 0 | AO136: 0 | AP136: 0 | AQ136: 0 | AR136: 0 | AS136: 0 | AT136: 0 | AU136: 0 | AV136: 0 | AW136: 0 | AX136: 0 | AY136: 0 | AZ136: 0 | BA136: 0 | BB136: 0 | BC136: 0 | BD136: 0 | BE136: 0 | BF136: 0 | BG136: 0 | BH136: 0 | BI136: 0 | BJ136: 0 | BK136: 0 | BL136: 0 | BM136: 0 | BN136: 0 | BO136: 0 | BP136: 0 | BQ136: =SUM(K136:BP136) -> 0 | BR136: =BQ136*BQ$138 -> 0 | BS136: =BQ136+BR136 -> 0
E137: =B123 -> VERIFICA DI PROGETTO (VER) | F137: =SUM(F123:F126) -> 0 | K137: =SUM(K123:K126) -> 0 | L137: 0 | M137: =SUM(M123:M126) -> 0 | N137: =SUM(N123:N126) -> 0 | O137: 0 | P137: 0 | Q137: 0 | R137: 0 | S137: 0 | T137: 0 | U137: 0 | V137: 0 | W137: 0 | X137: 0 | Y137: 0 | Z137: 0 | AA137: 0 | AB137: 0 | AC137: 0 | AD137: 0 | AE137: 0 | AF137: 0 | AG137: 0 | AH137: 0 | AI137: 0 | AJ137: 0 | AK137: 0 | AL137: 0 | AM137: 0 | AN137: 0 | AO137: 0 | AP137: 0 | AQ137: 0 | AR137: 0 | AS137: 0 | AT137: 0 | AU137: 0 | AV137: 0 | AW137: 0 | AX137: 0 | AY137: 0 | AZ137: 0 | BA137: 0 | BB137: 0 | BC137: 0 | BD137: 0 | BE137: 0 | BF137: 0 | BG137: 0 | BH137: 0 | BI137: 0 | BJ137: 0 | BK137: 0 | BL137: 0 | BM137: 0 | BN137: 0 | BO137: 0 | BP137: 0 | BQ137: =SUM(K137:BP137) -> 0 | BR137: =BQ137*BQ$138 -> 0 | BS137: =BQ137+BR137 -> 0
B138: Comune di Parabiago (MI) | E138: Aliquota spese (distinte) | F138: D | AD138: 0.2459687442 | AI138: 0.2489062548 | AM138: 0.25 | AO138: 0.25 | BQ138: 0.2483641863 | BR138: =E138 -> Aliquota spese (distinte)
B139: Riqualificazione in PONTE comparto ex Rede (PINQUA, Next Generation EU) | E139: Importo delle Spese | K139: =(K134+SUM(K135:K137))*K138 -> 0 | L139: =(L134+SUM(L135:L137))*L138 -> 0 | M139: =(M134+SUM(M135:M137))*M138 -> 0 | N139: =(N134+SUM(N135:N137))*N138 -> 0 | O139: =(O134+SUM(O135:O137))*O138 -> 0 | P139: =(P134+SUM(P135:P137))*P138 -> 0 | Q139: =(Q134+SUM(Q135:Q137))*Q138 -> 0 | R139: =(R134+SUM(R135:R137))*R138 -> 0 | S139: 0 | T139: =(T134+SUM(T135:T137))*T138 -> 0 | U139: =(U134+SUM(U135:U137))*U138 -> 0 | V139: =(V134+SUM(V135:V137))*V138 -> 0 | W139: 0 | X139: =(X134+SUM(X135:X137))*X138 -> 0 | Y139: =(Y134+SUM(Y135:Y137))*Y138 -> 0 | Z139: =(Z134+SUM(Z135:Z137))*Z138 -> 0 | AA139: 0 | AB139: =(AB134+SUM(AB135:AB137))*AB138 -> 0 | AC139: =(AC134+SUM(AC135:AC137))*AC138 -> 0 | AD139: =(AD134+SUM(AD135:AD137))*AD138 -> 45656.72138 | AE139: 0 | AF139: =(AF134+SUM(AF135:AF137))*AF138 -> 0 | AG139: =(AG134+SUM(AG135:AG137))*AG138 -> 0 | AH139: =(AH134+SUM(AH135:AH137))*AH138 -> 0 | AI139: 33983.20462 | AJ139: =(AJ134+SUM(AJ135:AJ137))*AJ138 -> 0 | AK139: =(AK134+SUM(AK135:AK137))*AK138 -> 0 | AL139: =(AL134+SUM(AL135:AL137))*AL138 -> 0 | AM139: 22132.6935 | AN139: =(AN134+SUM(AN135:AN137))*AN138 -> 0 | AO139: =(AO134+SUM(AO135:AO137))*AO138 -> 34510.87525 | AP139: =(AP134+SUM(AP135:AP137))*AP138 -> 0 | AQ139: 0 | AR139: =(AR134+SUM(AR135:AR137))*AR138 -> 0 | AS139: =(AS134+SUM(AS135:AS137))*AS138 -> 0 | AT139: =(AT134+SUM(AT135:AT137))*AT138 -> 0 | AU139: 0 | AV139: =(AV134+SUM(AV135:AV137))*AV138 -> 0 | AW139: =(AW134+SUM(AW135:AW137))*AW138 -> 0 | AX139: =(AX134+SUM(AX135:AX137))*AX138 -> 0 | AY139: 0 | AZ139: =(AZ134+SUM(AZ135:AZ137))*AZ138 -> 0 | BA139: =(BA134+SUM(BA135:BA137))*BA138 -> 0 | BB139: =(BB134+SUM(BB135:BB137))*BB138 -> 0 | BC139: 0 | BD139: =(BD134+SUM(BD135:BD137))*BD138 -> 0 | BE139: =(BE134+SUM(BE135:BE137))*BE138 -> 0 | BF139: =(BF134+SUM(BF135:BF137))*BF138 -> 0 | BG139: 0 | BH139: =(BH134+SUM(BH135:BH137))*BH138 -> 0 | BI139: =(BI134+SUM(BI135:BI137))*BI138 -> 0 | BJ139: =(BJ134+SUM(BJ135:BJ137))*BJ138 -> 0 | BK139: 0 | BL139: =(BL134+SUM(BL135:BL137))*BL138 -> 0 | BM139: =(BM134+SUM(BM135:BM137))*BM138 -> 0 | BN139: =(BN134+SUM(BN135:BN137))*BN138 -> 0 | BO139: 0 | BP139: =(BP134+SUM(BP135:BP137))*BP138 -> 0 | BQ139: =SUM(K139:BP139) -> 136283.4948 | BR139: =E139 -> Importo delle Spese
E140: Importo TOTALE comprese Spese | K140: =(K134+SUM(K135:K137))+K139 -> 0 | L140: =(L134+SUM(L135:L137))+L139 -> 0 | M140: 0 | N140: 0 | O140: 0 | P140: 0 | Q140: 0 | R140: 0 | S140: 0 | T140: 0 | U140: 0 | V140: 0 | W140: 0 | X140: 0 | Y140: 0 | Z140: 0 | AA140: 0 | AB140: 0 | AC140: 0 | AD140: 231276.734 | AE140: 0 | AF140: 0 | AG140: 0 | AH140: 0 | AI140: 170513.3398 | AJ140: 0 | AK140: 0 | AL140: 0 | AM140: 110663.4675 | AN140: 0 | AO140: 172554.3763 | AP140: 0 | AQ140: 0 | AR140: 0 | AS140: 0 | AT140: 0 | AU140: 0 | AV140: 0 | AW140: 0 | AX140: 0 | AY140: 0 | AZ140: 0 | BA140: 0 | BB140: 0 | BC140: 0 | BD140: 0 | BE140: 0 | BF140: 0 | BG140: 0 | BH140: 0 | BI140: 0 | BJ140: 0 | BK140: 0 | BL140: 0 | BM140: 0 | BN140: 0 | BO140: 0 | BP140: 0 | BQ140: 685007.9176 | BR140: =E140 -> Importo TOTALE comprese Spese
F141: =SUM(F135:F137) -> 0 | K141: =Ripristini!K141 -> 10 | L141: =Ripristini!L141 -> 10 | M141: =Ripristini!M141 -> 10 | N141: =Ripristini!N141 -> 10 | O141: =Ripristini!O141 -> 10 | P141: =Ripristini!P141 -> 10 | Q141: =Ripristini!Q141 -> 10 | R141: =Ripristini!R141 -> 10 | S141: =Ripristini!S141 -> 10 | T141: =Ripristini!T141 -> 10 | U141: =Ripristini!U141 -> 10 | V141: =Ripristini!V141 -> 10 | W141: =Ripristini!W141 -> 10 | X141: =Ripristini!X141 -> 10 | Y141: =Ripristini!Y141 -> 10 | Z141: =Ripristini!Z141 -> 10 | AA141: =Ripristini!AA141 -> 10 | AB141: =Ripristini!AB141 -> 10 | AC141: =Ripristini!AC141 -> 10 | AD141: =Ripristini!AD141 -> 10 | AE141: =Ripristini!AE141 -> 10 | AF141: =Ripristini!AF141 -> 10 | AG141: =Ripristini!AG141 -> 11 | AH141: =Ripristini!AH141 -> 12 | AI141: =Ripristini!AI141 -> 11 | AJ141: =Ripristini!AJ141 -> 12 | AK141: =Ripristini!AK141 -> 12 | AL141: =Ripristini!AL141 -> 12 | AM141: =Ripristini!AM141 -> 13 | AN141: =Ripristini!AN141 -> 13 | AO141: =Ripristini!AO141 -> 13 | AP141: =Ripristini!AP141 -> 13 | AQ141: =Ripristini!AQ141 -> 14 | AR141: =Ripristini!AR141 -> 14 | AS141: =Ripristini!AS141 -> 14 | AT141: =Ripristini!AT141 -> 14 | AU141: =Ripristini!AU141 -> 14 | AV141: =Ripristini!AV141 -> 14 | AW141: =Ripristini!AW141 -> 14 | AX141: =Ripristini!AX141 -> 14 | AY141: =Ripristini!AY141 -> 14 | AZ141: =Ripristini!AZ141 -> 15 | BA141: =Ripristini!BA141 -> 15 | BB141: =Ripristini!BB141 -> 15 | BC141: =Ripristini!BC141 -> 16 | BD141: =Ripristini!BD141 -> 16 | BE141: =Ripristini!BE141 -> 16 | BF141: =Ripristini!BF141 -> 16 | BG141: =Ripristini!BG141 -> 16 | BH141: =Ripristini!BH141 -> 17 | BI141: =Ripristini!BI141 -> 17 | BJ141: =Ripristini!BJ141 -> 17 | BK141: =Ripristini!BK141 -> 18 | BL141: =Ripristini!BL141 -> 18 | BM141: =Ripristini!BM141 -> 18 | BN141: =Ripristini!BN141 -> 18 | BO141: =Ripristini!BO141 -> 18 | BP141: =Ripristini!BP141 -> 18
D142: =D25 -> Qb.I.11 | E142: (Geologo nel progetto di fattibilità) | F142: =F25 -> 0 | K142: =K25 -> 0 | L142: 0 | M142: 0 | N142: 0 | O142: 0 | P142: 0 | Q142: 0 | R142: 0 | S142: 0 | T142: 0 | U142: 0 | V142: 0 | W142: 0 | X142: 0 | Y142: 0 | Z142: 0 | AA142: 0 | AB142: 0 | AC142: 0 | AD142: 0 | AE142: 0 | AF142: 0 | AG142: 0 | AH142: 0 | AI142: 0 | AJ142: 0 | AK142: 0 | AL142: 0 | AM142: 0 | AN142: 0 | AO142: 0 | AP142: 0 | AQ142: =AQ25 -> 0 | AR142: 0 | AS142: 0 | AT142: 0 | AU142: 0 | AV142: 0 | AW142: 0 | AX142: 0 | AY142: 0 | AZ142: 0 | BA142: 0 | BB142: 0 | BC142: 0 | BD142: 0 | BE142: 0 | BF142: 0 | BG142: 0 | BH142: 0 | BI142: 0 | BJ142: 0 | BK142: 0 | BL142: 0 | BM142: 0 | BN142: 0 | BO142: 0 | BP142: 0 | BQ142: 0 | BR142: 0 | BS142: 0
D143: =D56 -> Qb.II.13 | E143: (Geologo nel progetto definitivo) | F143: =F56 -> 1 | K143: =K56 -> 0 | L143: 0 | M143: 0 | N143: 0 | O143: 0 | P143: 0 | Q143: 0 | R143: 0 | S143: 0 | T143: 0 | U143: 0 | V143: 0 | W143: 0 | X143: 0 | Y143: 0 | Z143: 0 | AA143: 0 | AB143: 0 | AC143: 0 | AD143: 2971.950208 | AE143: 0 | AF143: 0 | AG143: 0 | AH143: 0 | AI143: 2323.257266 | AJ143: 0 | AK143: 0 | AL143: 0 | AM143: 1101.954688 | AN143: 0 | AO143: 1689.663855 | AP143: 0 | AQ143: 0 | AR143: 0 | AS143: 0 | AT143: 0 | AU143: 0 | AV143: 0 | AW143: 0 | AX143: 0 | AY143: 0 | AZ143: 0 | BB143: =BB56 -> 0 | BC143: 0 | BD143: 0 | BE143: 0 | BF143: 0 | BG143: 0 | BH143: 0 | BI143: 0 | BJ143: 0 | BK143: 0 | BL143: 0 | BM143: 0 | BN143: 0 | BO143: 0 | BP143: 0 | BQ143: 8086.826018 | BR143: 2008.477963 | BS143: 10095.30398
D144: =D96 -> Qc.I.05.01 | E144: (Geologo in Direzione dei Lavori) | F144: =F96 -> 0 | K144: =K96 -> 0 | L144: =L96 -> 0 | M144: 0 | N144: 0 | O144: 0 | P144: 0 | Q144: 0 | R144: 0 | S144: 0 | T144: 0 | U144: 0 | V144: 0 | W144: 0 | X144: 0 | Y144: 0 | Z144: 0 | AA144: 0 | AB144: 0 | AC144: 0 | AD144: 0 | AE144: 0 | AF144: 0 | AG144: 0 | AH144: 0 | AI144: 0 | AJ144: 0 | AK144: 0 | AL144: 0 | AM144: 0 | AN144: 0 | AO144: 0 | AP144: 0 | AQ144: 0 | AR144: 0 | AS144: 0 | AT144: 0 | AU144: 0 | AV144: 0 | AW144: 0 | AX144: 0 | AY144: 0 | AZ144: 0 | BA144: 0 | BB144: 0 | BC144: 0 | BD144: 0 | BE144: 0 | BF144: 0 | BG144: 0 | BH144: 0 | BI144: 0 | BJ144: 0 | BK144: 0 | BL144: 0 | BM144: 0 | BN144: 0 | BO144: 0 | BP144: 0 | BQ144: =BQ96 -> 0 | BR144: =BR96 -> 0 | BS144: =BS96 -> 0
D145: =MAX(BQ142:BQ144) -> 8086.826018 | E145: Prestazioni da GEOLOGO | F145: =IF(SUM(F142:F144)>1,1,0) -> 0 | G145: =SUM(F142:F144) -> 1 | K145: =SUM(K142:K144) -> 0 | L145: =SUM(L142:L144) -> 0 | M145: 0 | N145: 0 | O145: 0 | P145: 0 | Q145: 0 | R145: 0 | S145: 0 | T145: 0 | U145: 0 | V145: 0 | W145: 0 | X145: 0 | Y145: 0 | Z145: 0 | AA145: 0 | AB145: 0 | AC145: 0 | AD145: 2971.950208 | AE145: 0 | AF145: 0 | AG145: 0 | AH145: 0 | AI145: 2323.257266 | AJ145: 0 | AK145: 0 | AL145: 0 | AM145: 1101.954688 | AN145: 0 | AO145: 1689.663855 | AP145: 0 | AQ145: 0 | AR145: 0 | AS145: 0 | AT145: 0 | AU145: 0 | AV145: 0 | AW145: 0 | AX145: 0 | AY145: 0 | AZ145: 0 | BA145: 0 | BB145: 0 | BC145: 0 | BD145: 0 | BE145: 0 | BF145: 0 | BG145: 0 | BH145: 0 | BI145: 0 | BJ145: 0 | BK145: 0 | BL145: 0 | BM145: 0 | BN145: 0 | BO145: 0 | BP145: 0 | BQ145: =SUM(BQ142:BQ144) -> 8086.826018 | BR145: =SUM(BR142:BR144) -> 2008.477963 | BS145: =SUM(BS142:BS144) -> 10095.30398
D146: =D86 -> Qb.III.07 | E146: =E86 -> Piano di Sicurezza e Coordinamento (artt. 91 e 100 d.lgs. n. 81/2008) | F146: =F86 -> 1 | K146: =K86 -> 0 | L146: =L86 -> 0 | M146: 0 | N146: 0 | O146: 0 | P146: 0 | Q146: 0 | R146: 0 | S146: 0 | T146: 0 | U146: 0 | V146: 0 | W146: 0 | X146: 0 | Y146: 0 | Z146: 0 | AA146: 0 | AB146: 0 | AC146: 0 | AD146: 9786.523844 | AE146: 0 | AF146: 0 | AG146: 0 | AH146: 0 | AI146: 7515.009692 | AJ146: 0 | AK146: 0 | AL146: 0 | AM146: 4991.987578 | AN146: 0 | AO146: 7654.380953 | AP146: 0 | AQ146: 0 | AR146: 0 | AS146: 0 | AT146: 0 | AU146: 0 | AV146: 0 | AW146: 0 | AX146: 0 | AY146: 0 | AZ146: 0 | BA146: 0 | BB146: 0 | BC146: 0 | BD146: 0 | BE146: 0 | BF146: 0 | BG146: 0 | BH146: 0 | BI146: 0 | BJ146: 0 | BK146: 0 | BL146: 0 | BM146: 0 | BN146: 0 | BO146: 0 | BP146: 0 | BQ146: 29947.90207 | BR146: =BR86 -> 7437.986328 | BS146: =BS86 -> 37385.8884
D147: =D110 -> Qc.I.12 | E147: =E110 -> Coordinamento della sicurezza in esecuzione (art. 92 d.lgs. n. 81/2008) | F147: =F110 -> 1 | K147: =K110 -> 0 | L147: =L110 -> 0 | M147: 0 | N147: 0 | O147: 0 | P147: 0 | Q147: 0 | R147: 0 | S147: 0 | T147: 0 | U147: 0 | V147: 0 | W147: 0 | X147: 0 | Y147: 0 | Z147: 0 | AA147: 0 | AB147: 0 | AC147: 0 | AD147: 24466.30925 | AE147: 0 | AF147: 0 | AG147: 0 | AH147: 0 | AI147: 18787.52395 | AJ147: 0 | AK147: 0 | AL147: 0 | AM147: 12479.96876 | AN147: 0 | AO147: 19135.9521 | AP147: 0 | AQ147: 0 | AR147: 0 | AS147: 0 | AT147: 0 | AU147: 0 | AV147: 0 | AW147: 0 | AX147: 0 | AY147: 0 | AZ147: 0 | BA147: 0 | BB147: 0 | BC147: 0 | BD147: 0 | BE147: 0 | BF147: 0 | BG147: 0 | BH147: 0 | BI147: 0 | BJ147: 0 | BK147: 0 | BL147: 0 | BM147: 0 | BN147: 0 | BO147: 0 | BP147: 0 | BQ147: 74869.75405 | BR147: =BR110 -> 18594.96554 | BS147: =BS110 -> 93464.7196
C148: =MAX(BP143:BP146) -> 0 | D148: =MAX(BQ146:BQ147) -> 74869.75405 | E148: Prestazioni da Coordinatore ex d.lgs. n. 81 del 2008 | F148: =IF(SUM(F146:F147)>1,1,0) -> 1 | G148: =SUM(F146:F147) -> 2 | K148: =K146+K147 -> 0 | L148: 0 | M148: 0 | N148: 0 | O148: 0 | P148: 0 | Q148: 0 | R148: 0 | S148: 0 | T148: 0 | U148: 0 | V148: 0 | W148: 0 | X148: 0 | Y148: 0 | Z148: 0 | AA148: 0 | AB148: 0 | AC148: 0 | AD148: 34252.83309 | AE148: 0 | AF148: 0 | AG148: 0 | AH148: 0 | AI148: 26302.53364 | AJ148: 0 | AK148: 0 | AL148: 0 | AM148: 17471.95634 | AN148: 0 | AO148: 26790.33305 | AP148: 0 | AQ148: =AQ146+AQ147 -> 0 | AR148: 0 | AS148: 0 | AT148: 0 | AU148: 0 | AV148: 0 | AW148: 0 | AX148: 0 | AY148: 0 | AZ148: 0 | BA148: 0 | BB148: 0 | BC148: 0 | BD148: 0 | BE148: 0 | BF148: 0 | BG148: 0 | BH148: 0 | BI148: 0 | BJ148: 0 | BK148: 0 | BL148: 0 | BM148: 0 | BN148: 0 | BO148: 0 | BP148: 0 | BQ148: 104817.6561 | BR148: =BR147+BR146 -> 26032.95187 | BS148: =BS147+BS146 -> 130850.608
A149: 0 | D149: =D95 -> Qc.I.05 | E149: Ufficio di DL: Direttori operativi | F149: =SUM(K149:BP149) -> 0 | BQ149: =BQ95 -> 0 | BR149: =E149 -> Ufficio di DL: Direttori operativi
A150: 0 | D150: QcI.05.01 | E150: Ufficio di DL: Direttori op. "Geologi" | F150: =SUM(K150:BP150) -> 0 | BQ150: =BQ96 -> 0 | BR150: =E150 -> Ufficio di DL: Direttori op. "Geologi"
A151: 0 | D151: =D102 -> Qc.I.06 | E151: Ufficio di DL: Ispettori di cantiere | F151: 0 | BQ151: =BQ102 -> 0 | BR151: =E151 -> Ufficio di DL: Ispettori di cantiere

Sheet F6 (hidden)
E1: Compensi orari: | G1: 66 | H1: 45 | I1: 30 | J1: =J78 -> 594 | K1: =K78 -> 585 | L1: =L78 -> 480 | M1: =M78 -> 1659
B2: FASI | D2: Descrizione delle singole prestazioni | G2: ore stimate a vacazione | J2: importo stimato a vacazione | M2: Importo
G3: professionisti iscritti | I3: aiutanti di | J3: professionisti iscritti | L3: aiutanti di | M3: totale
G4: incaricato | H4: iscritti | I4: concetto | J4: incaricato | K4: iscritti | L4: concetto | M4: vacazioni | T4: =IF(T3>0,0.03+10/T3^0.4,0) -> 0 | U4: 0 | V4: 0 | W4: 0 | X4: 0 | Y4: 0 | Z4: 0 | AA4: 0 | AB4: 0
B5: Progettazione | C5: 1 | D5: Rilievi delle aree / dei fabbricati da acquisire o espropriare o alienare (art. 21, co. 2, lett. a), d.P.R. 207/2010) | G5: 2 | H5: 3 | I5: 4 | J5: =G5*$G$1 -> 132 | K5: =H5*$H$1 -> 135 | L5: =I5*$I$1 -> 120 | M5: =SUM(J5:L5) -> 387
C6: 2 | D6: Rilievo degli arredi e attrezzature fisse o semifisse da riutilizzare | G6: 5 | H6: 6 | I6: 7 | J6: 330 | K6: 270 | L6: 210 | M6: 810
C7: 3 | D7: Rilievo degli impianti interni e pertinenziali | G7: 2 | H7: 4 | I7: 5 | J7: 132 | K7: 180 | L7: 150 | M7: 462
C8: 4 | D8: Rilievo delle infrastrutture a rete sopra/sottosuolo (artt. 18, co. 1, lett.b) e 19, co. 1, lett. f), d.P.R. 207/2010) | H8: 0 | J8: 0 | K8: 0 | L8: 0 | M8: 0
C9: 5 | D9: Frazionamenti catastali preventivi | J9: 0 | K9: 0 | L9: 0 | M9: 0
C10: 6 | D10: Information memorandum (PPP) | J10: 0 | K10: 0 | L10: 0 | M10: 0
C11: 7 | D11: Fattibilità tecnica | E11: (artt. 11 e 14 d.P.R. 207/2010) | J11: 0 | K11: 0 | L11: 0 | M11: 0
C12: 8 | D12: Fattibilità e sostenibilità ambientale (PPP) | E12: (artt. 11 e 14 d.P.R. 207/2010) | J12: 0 | K12: 0 | L12: 0 | M12: 0
C13: 9 | D13: Fattibilità e sostenibilità economica (PPP) | E13: (artt. 11 e 14 d.P.R. 207/2010) | J13: 0 | K13: 0 | L13: 0 | M13: 0
C14: 10 | D14: Indagine di mercato (PPP) | J14: 0 | K14: 0 | L14: 0 | M14: 0
C15: 11 | D15: Variante allo strumento urbanistico con procedura ordinaria /semplificata (artt. 17 e 19 d.P.R. 327/2001) | J15: 0 | K15: 0 | L15: 0 | M15: 0
C16: 12 | D16: Indagini invasive del terreno | J16: 0 | K16: 0 | L16: 0 | M16: 0
C17: 13 | D17: Individuazione criteri e elementi dell’offerta (solo offerta di qualità/prezzo) | J17: 0 | K17: 0 | L17: 0 | M17: 0
C18: 14 | D18: Ripartizione categorie dei lavori | J18: 0 | K18: 0 | L18: 0 | M18: 0
C19: 15 | D19: Ripartizione classi/categorie di progettazione | J19: 0 | K19: 0 | L19: 0 | M19: 0
C20: 16 | D20: Relazione indagine archeologica (solo art. 53, co. 2, lett. b) e c) e concessioni) | J20: 0 | K20: 0 | L20: 0 | M20: 0
C21: 17 | D21: Verifica interesse archeologico preliminare | E21: (art. 96, lett. a), d.lgs. 163/2006) | J21: 0 | K21: 0 | L21: 0 | M21: 0
C22: 18 | D22: Piano economico finanziario | J22: 0 | K22: 0 | L22: 0 | M22: 0
C23: 19 | D23: Indagini invasive del terreno | J23: 0 | K23: 0 | L23: 0 | M23: 0
C24: 20 | D24: Ripartizione categorie dei lavori (artt. 32, co. 7, lett. b), 43, co. 6 e 7, d.P.R. 207/2010) | J24: 0 | K24: 0 | L24: 0 | M24: 0
C25: 21 | D25: Lista dei lavori e delle forniture per l’offerta di prezzi unitari | J25: 0 | K25: 0 | L25: 0 | M25: 0
C26: 22 | D26: Censimento e progetto di risoluzione delle interferenze | E26: (art. 26, co. 1, lett. l), d.P.R. 207/2010) | I26: 0 | J26: 0 | K26: 0 | L26: 0 | M26: 0
C27: 23 | D27: Assenso A.S.L. (igienico-sanitario) | E27: (art. 5, co. 3, lett. a), d.P.R. 380/2001) | J27: 0 | K27: 0 | L27: 0 | M27: 0
C28: 24 | D28: Assenso A.R.P.A. (ambientale) | J28: 0 | K28: 0 | L28: 0 | M28: 0
C29: 25 | D29: Verifica interesse archeologico definitivo/esecutivo | E29: (art. 96, lettera b), d.lgs. 163/ 2006) | J29: 0 | K29: 0 | L29: 0 | M29: 0
C30: 26 | D30: Autorizzazione Soprintendenza | E30: (parte II d.lgs. n. 42 del 2004) | J30: 0 | K30: 0 | L30: 0 | M30: 0
C31: 27 | D31: Autorizzazione paesaggistica o decreto in sub-delega | E31: (parte III d.lgs. n. 42 del 2004) | J31: 0 | K31: 0 | L31: 0 | M31: 0
C32: 28 | D32: Autorizzazione vincolo idrogeologico | E32: (art. 5, co. 3, lett. i), d.P.R. 380/2001) | J32: 0 | K32: 0 | L32: 0 | M32: 0
C33: 29 | D33: Assenso Autorità di Bacino | J33: 0 | K33: 0 | L33: 0 | M33: 0
C34: 30 | D34: Assenso Servizio Forestale | J34: 0 | K34: 0 | L34: 0 | M34: 0
C35: 31 | D35: Assenso Provincia: -strade -urbanistica -____________ | J35: 0 | K35: 0 | L35: 0 | M35: 0
C36: 32 | D36: Assenso: -ANAS -concessionaria _____________ | E36: (art. 5, co. 3, lett. l), d.P.R. 380/2001) | J36: 0 | K36: 0 | L36: 0 | M36: 0
C37: 33 | D37: Assenso Ferrovie: -RFI -FS -________________ | E37: (artt. 37, 58 e 59, d.P.R. 753/1980) | J37: =G37*$G$1 -> 0 | K37: =H37*$H$1 -> 0 | L37: =I37*$I$1 -> 0 | M37: =SUM(J37:L37) -> 0
C38: 34 | D38: Relazione e pratica fonti rinnovabili, risparmio e uso di energia (art. 125 d.P.R. 380/2001) | J38: 0 | K38: 0 | L38: 0 | M38: 0
C39: 35 | D39: Protezione scariche atmosferiche | E39: (d.P.R. n. 462/2001) | J39: 0 | K39: 0 | L39: 0 | M39: 0
C40: 36 | D40: SCIA per parere conformità in materia antincendio VV.FF. (artt. 3, 4 e 8, d.P.R. 151/2011) | J40: 0 | K40: 0 | L40: 0 | M40: 0
C41: 37 | D41: Pratica per sdemanializzazione o per concessione demaniale | J41: 0 | K41: 0 | L41: 0 | M41: 0
C42: 38 | D42: Verifica e attestazione sul progetto barriere architettoniche (art. 7.3 d.m. 236/1989, art. 21 d.P.R. 503/1996) | J42: 0 | K42: 0 | L42: 0 | M42: 0
C43: 39 | D43: Denuncia o Autorizzazione per zona sismica | E43: (art. 93 d.P.R. n. 380 del 2001) | J43: 0 | K43: 0 | L43: 0 | M43: 0
C44: 40 | D44: Partecipazione a conferenza di servizi (art. 58 d.P.R. 207/2010, art. 14-bis legge 241/1990) | J44: 0 | K44: 0 | L44: 0 | M44: 0
C45: 41 | D45: Progetto ricollocazione arredamenti e attrezzature fissi o semifissi | J45: 0 | K45: 0 | L45: 0 | M45: 0
C46: 42 | D46: Assistenza e partecipazione alla verifica delle offerte anomale | E46: (artt. 53, co. 2, lett. b) e 86 d.lgs. 163/2006) | H46: 0 | I46: 0 | J46: 0 | K46: 0 | L46: 0 | M46: 0
C47: 43 | D47: Ripartizione categorie dei lavori | E47: (art. 43, co. 6 e 7, d.P.R. 207/2010) | J47: 0 | K47: 0 | L47: 0 | M47: 0
C48: 44 | D48: Lista dei lavori e delle forniture per l’offerta di prezzi unitari (art. 119 del d.P.R. 207/2010) | J48: 0 | K48: 0 | L48: 0 | M48: 0
C49: 45 | D49: Pareri sulle riserve dell’esecutore motivate sulla progettazione | J49: 0 | K49: 0 | L49: 0 | M49: 0
C50: 46 | D50: Pareri sulle varianti in corso d’opera | J50: 0 | K50: 0 | L50: 0 | M50: 0
C51: 47 | D51: Progetto ricollocazione arredamenti e attrezzature fissi o semifissi | J51: 0 | K51: 0 | L51: 0 | M51: 0
C52: 48 | D52: Assistenza e partecipazione alla verifica delle offerte anomale | J52: 0 | K52: 0 | L52: 0 | M52: 0
B53: Direzione dei lavori | C53: 49 | D53: Pareri e proposte di controdeduzioni alle riserve dell’esecutore | J53: 0 | K53: 0 | L53: 0 | M53: 0
C54: 50 | D54: Controllo regolarità contratti di subappalto | J54: 0 | K54: 0 | L54: 0 | M54: 0
C55: 51 | D55: Verifica POS e altre attività imprese e lavoratori autonomi | J55: 0 | K55: 0 | L55: 0 | M55: 0
C56: 52 | D56: Rapporti con gli organismi di ispezione e vigilanza | J56: 0 | K56: 0 | L56: 0 | M56: 0
C57: 53 | D57: Rapporti con i gestori delle reti per gli allacciamenti | J57: 0 | K57: 0 | L57: 0 | M57: 0
C58: 54 | D58: Piano lavoro rimozione amianto d.lgs. n. 257 del 2006 | J58: 0 | K58: 0 | L58: 0 | M58: 0
C59: 55 | D59: Autorizzazione emissioni in atmosfera d.lgs. n. 152 del 2006 | J59: 0 | K59: 0 | L59: 0 | M59: 0
C60: 56 | D60: Autorizzazioni allo scarico d.lgs. n. 152 del 2006 | J60: 0 | K60: 0 | L60: 0 | M60: 0
C61: 57 | D61: Certificato prevenzione incendi dei VV.FF. | E61: (artt. 4, co. 3, d.P.R. 151/2011) | J61: 0 | K61: 0 | L61: 0 | M61: 0
C62: 58 | D62: Verifica e attestazione finale d.P.R. n. 503 del 1996 | E62: (art. 11 d.m. 236/1989) | J62: 0 | K62: 0 | L62: 0 | M62: 0
C63: 59 | D63: Certificato di agibilità | E63: (artt. 24 e 25 d.P.R. 380/2001) | J63: 0 | K63: 0 | L63: 0 | M63: 0
C64: 60 | D64: Pratiche di accatastamento | J64: 0 | K64: 0 | L64: 0 | M64: 0
C65: 61 | D65: Frazionamenti catastali e riconfinamenti (posteriori all’esecuzione) | J65: 0 | K65: 0 | L65: 0 | M65: 0
C66: 62 | D66: Redazione elaborati ex built | J66: 0 | K66: 0 | L66: 0 | M66: 0
C67: 63 | D67: Definizione delle ripartizioni dei lavori eseguiti ai fini dell’allegato B | J67: 0 | K67: 0 | L67: 0 | M67: 0
C68: 64 | D68: Assistenza ricollocazione arredamenti e attrezzature fissi o semifissi | J68: 0 | K68: 0 | L68: 0 | M68: 0
B69: Collaudi | C69: 65 | D69: Supplemento per collaudo in corso d'opera | J69: =G69*$G$1 -> 0 | K69: =H69*$H$1 -> 0 | L69: =I69*$I$1 -> 0 | M69: =SUM(J69:L69) -> 0
C70: 66 | D70: Supplemento per commissari collaudatori oltre il primo | J70: 0 | K70: 0 | L70: 0 | M70: 0
C71: 67 | D71: Supplemento per assistenti ai collaudatori | J71: 0 | K71: 0 | L71: 0 | M71: 0
C72: 68 | J72: 0 | K72: 0 | L72: 0 | M72: 0
B73: Monitoraggi | C73: 69 | D73: Monitoraggio delle strutture | J73: 0 | K73: 0 | L73: 0 | M73: 0
C74: 70 | D74: Monitoraggio degli impianti _______________ | J74: 0 | K74: 0 | L74: 0 | M74: 0
C75: 71 | D75: Monitoraggio degli impianti _______________ | J75: 0 | K75: 0 | L75: 0 | M75: 0
C76: 72 | D76: Monitoraggio dei consumi energetici | J76: 0 | K76: 0 | L76: 0 | M76: 0
C77: 73 | D77: Monitoraggio delle emissioni | J77: 0 | K77: 0 | L77: 0 | M77: 0
G78: =SUM(G5:G77) -> 9 | H78: 13 | I78: 16 | J78: 594 | K78: 585 | L78: 480 | M78: 1659

Sheet X-A (hidden)
C1: Offerte CASUALI | F1: Variabili MOBILI | K1: variabili STANDARD
C2: R max | D2: =MAX(D5:D20) -> 34.50477219 | E2: interpol. | F2: X | G2: Alfa | K2: X | N2: Alfa
C3: R med | D3: =IF(D2>0,AVERAGE(D5:D20),1) -> 20.17257702 | E3: lineare | F3: 0.8 | G3: 0.5 | K3: 0.8 | L3: 0.85 | M3: 0.9 | N3: 0.4 | O3: 0.5 | P3: 0.6
C4: base gara | D4: 0 | E4: 0 | F4: 0 | G4: 0 | K4: 0 | L4: 0 | M4: 0 | N4: 0 | O4: 0 | P4: 0
B5: 1 | C5: Offerta 1 | D5: 0.5607056618 | E5: =D5/D$2 -> 0.01625009024 | F5: 0.02223635243 | G5: 0.1274758418 | L5: 0.1
B6: 2 | C6: Offerta 2 | D6: 1.814110279 | E6: =D6/D$2 -> 0.05257563416 | F6: 0.0719436208 | G6: 0.2292937726 | L6: 0.2
B7: 3 | C7: Offerta 3 | D7: 4 | E7: 0.1159259936 | F7: 0.158631196 | G7: 0.3404790649 | L7: 0.3
B8: 4 | C8: Offerta 4 | D8: 11.58249855 | E8: 0.3356781632 | F8: 0.4593363993 | G8: 0.5793773928 | L8: 0.4
B9: 5 | C9: Offerta 5 | D9: 12.07791996 | E9: 0.350036218 | F9: 0.478983722 | G9: 0.5916385873 | L9: 0.5
B10: 6 | C10: Offerta 6 | D10: 14.9414463 | E10: 0.4330255022 | F10: 0.5925448742 | G10: 0.6580467325 | L10: 0.6
B11: 7 | C11: Offerta 7 | D11: 16.56130791 | E11: 0.4799715187 | F11: 0.65678502 | G11: 0.6927997681 | L11: 0.7
B12: 8 | C12: Offerta 8 | D12: 21.33695984 | E12: 0.6183770675 | F12: 0.8162484939 | G12: 0.7863695489 | L12: 0.8
B13: 9 | C13: Offerta 9 | D13: 23.18074417 | E13: 0.6718127002 | F13: 0.84197776 | G13: 0.8196418121 | L13: 0.86
B14: 10 | C14: Offerta 10 | D14: 28.22189903 | E14: 0.8179129217 | F14: 0.9123250412 | G14: 0.9043853834 | L14: 0.88
B15: 11 | C15: Offerta 11 | D15: 28.36151695 | E15: 0.8219592583 | F15: 0.9142733529 | G15: 0.9066196878 | L15: 0.9
B16: 12 | C16: Offerta 12 | D16: 30.42894363 | E16: 0.8818763813 | F16: 0.9431234578 | G16: 0.939082734 | L16: 0.92
B17: 13 | C17: Offerta 13 | D17: 30.98960495 | E17: 0.8981251864 | F17: 0.9509472601 | G17: 0.9476946694 | L17: 0.94
B18: 14 | C18: Offerta 14 | D18: 31.61920166 | E18: 0.9163718424 | F18: 0.9597330281 | G18: 0.9572731284 | L18: 0.96
B19: 15 | C19: Offerta 15 | D19: 32.57960129 | E19: 0.9442056627 | F19: 0.9731350172 | G19: 0.9717024558 | L19: 0.98
B20: 16 | C20: Offerta 16 | D20: 34.50477219 | E20: 1 | F20: 1 | G20: 1 | L20: 1
